Workbook

Sheet Display
F2: ARK Blockchain & Fintech Innovation ETF | AB2: =RTD("cqg.rtd", ,"SystemInfo", "Linetime") -> 46019.4859
B5: Exchange Traded Funds Performance | S5: Top 15 Positive Performing Companies
B6: Symbol | C6: Description | H6: Last | I6: NC | J6: %NC | K6: NC/ATR | L6: Open | M6: High | N6: Low | O6: Volume | Q6: Ratio
B7: ARKF | C7: =RTD("cqg.rtd", ,"ContractData",B7, "LongDescription",, "T") -> ARK Blockchain & Fintech Innovation ETF | H7: =RTD("cqg.rtd", ,"ContractData",B7, "LastTradeToday",, "T") -> 48.94 | I7: =RTD("cqg.rtd", ,"ContractData",B7, "NetLastTradeToday",, "T") -> -0.28 | J7: =IFERROR(RTD("cqg.rtd", ,"ContractData",B7, "PerCentNetLastTrade",, "T")/100,"") -> -0.005688744413 | K7: =IFERROR(I7/RTD("cqg.rtd",,"StudyData",B7, "ATR", "MaType=Sim,Period=10", "ATR","D","-1","ALL",,,"FALSE","T")/100,"") -> -0.002287581699 | L7: =RTD("cqg.rtd", ,"ContractData",B7, "OPen",, "T") -> 49.12 | M7: =RTD("cqg.rtd", ,"ContractData", B7, "HIgh",, "T") -> 49.18 | N7: =RTD("cqg.rtd", ,"ContractData",B7, "LOw",, "T") -> 48.7 | O7: =RTD("cqg.rtd", ,"ContractData",B7, "T_CVol",, "T") -> 152527 | Q7: =IFERROR(O7/RTD("cqg.rtd",,"StudyData",B7, "MA", "InputChoice=Vol,MAType=Sim,Period=21", "MA","D","-1","all",,,,"T"),"") -> 0.8419434687
B8: SPY | C8: =RTD("cqg.rtd", ,"ContractData",B8, "LongDescription",, "T") -> SPDR S&P 500 | H8: =RTD("cqg.rtd", ,"ContractData",B8, "LastTradeToday",, "T") -> 690.06 | I8: =RTD("cqg.rtd", ,"ContractData",B8, "NetLastTradeToday",, "T") -> 0.26 | J8: =IFERROR(RTD("cqg.rtd", ,"ContractData",B8, "PerCentNetLastTrade",, "T")/100,"") -> 0.0003769208466 | K8: =IFERROR(I8/RTD("cqg.rtd",,"StudyData",B8, "ATR", "MaType=Sim,Period=10", "ATR","D","-1","ALL",,,"FALSE","T")/100,"") -> 0.0003995696942 | L8: =RTD("cqg.rtd", ,"ContractData",B8, "OPen",, "T") -> 690.64 | M8: =RTD("cqg.rtd", ,"ContractData", B8, "HIgh",, "T") -> 691.66 | N8: =RTD("cqg.rtd", ,"ContractData",B8, "LOw",, "T") -> 689.27 | O8: =RTD("cqg.rtd", ,"ContractData",B8, "T_CVol",, "T") -> 41613347 | Q8: =IFERROR(O8/RTD("cqg.rtd",,"StudyData",B8, "MA", "InputChoice=Vol,MAType=Sim,Period=21", "MA","D","-1","all",,,,"T"),"") -> 0.5351775795
B9: XLF | C9: =RTD("cqg.rtd", ,"ContractData",B9, "LongDescription",, "T") -> Financial Select Sector SPDR | H9: =RTD("cqg.rtd", ,"ContractData",B9, "LastTradeToday",, "T") -> 55.61 | I9: =RTD("cqg.rtd", ,"ContractData",B9, "NetLastTradeToday",, "T") -> -0.11 | J9: =IFERROR(RTD("cqg.rtd", ,"ContractData",B9, "PerCentNetLastTrade",, "T")/100,"") -> -0.001973802261 | K9: =IFERROR(I9/RTD("cqg.rtd",,"StudyData",B9, "ATR", "MaType=Sim,Period=10", "ATR","D","-1","ALL",,,"FALSE","T")/100,"") -> -0.001896551724 | L9: =RTD("cqg.rtd", ,"ContractData",B9, "OPen",, "T") -> 55.71 | M9: =RTD("cqg.rtd", ,"ContractData", B9, "HIgh",, "T") -> 55.79 | N9: =RTD("cqg.rtd", ,"ContractData",B9, "LOw",, "T") -> 55.44 | O9: =RTD("cqg.rtd", ,"ContractData",B9, "T_CVol",, "T") -> 20410062 | Q9: =IFERROR(O9/RTD("cqg.rtd",,"StudyData",B9, "MA", "InputChoice=Vol,MAType=Sim,Period=21", "MA","D","-1","all",,,,"T"),"") -> 0.5575949737
B10: S.XLY | C10: =RTD("cqg.rtd", ,"ContractData",B10, "LongDescription",, "T") -> Consumer Discretionary Select SectorSPDR | H10: =RTD("cqg.rtd", ,"ContractData",B10, "LastTradeToday",, "T") -> 122.05 | I10: =RTD("cqg.rtd", ,"ContractData",B10, "NetLastTradeToday",, "T") -> -0.54 | J10: =IFERROR(RTD("cqg.rtd", ,"ContractData",B10, "PerCentNetLastTrade",, "T")/100,"") -> -0.004404926992 | K10: =IFERROR(I10/RTD("cqg.rtd",,"StudyData",B10, "ATR", "MaType=Sim,Period=10", "ATR","D","-1","ALL",,,"FALSE","T")/100,"") -> -0.003921568627 | L10: =RTD("cqg.rtd", ,"ContractData",B10, "OPen",, "T") -> 122.43 | M10: =RTD("cqg.rtd", ,"ContractData", B10, "HIgh",, "T") -> 122.78 | N10: =RTD("cqg.rtd", ,"ContractData",B10, "LOw",, "T") -> 121.88 | O10: =RTD("cqg.rtd", ,"ContractData",B10, "T_CVol",, "T") -> 4197048 | Q10: =IFERROR(O10/RTD("cqg.rtd",,"StudyData",B10, "MA", "InputChoice=Vol,MAType=Sim,Period=21", "MA","D","-1","all",,,,"T"),"") -> 0.4823773037
B11: S.FXI | C11: =RTD("cqg.rtd", ,"ContractData",B11, "LongDescription",, "T") -> iShares China Large-Cap ETF | H11: =RTD("cqg.rtd", ,"ContractData",B11, "LastTradeToday",, "T") -> 38.93 | I11: =RTD("cqg.rtd", ,"ContractData",B11, "NetLastTradeToday",, "T") -> 0.38 | J11: =IFERROR(RTD("cqg.rtd", ,"ContractData",B11, "PerCentNetLastTrade",, "T")/100,"") -> 0.009857328145 | K11: =IFERROR(I11/RTD("cqg.rtd",,"StudyData",B11, "ATR", "MaType=Sim,Period=10", "ATR","D","-1","ALL",,,"FALSE","T")/100,"") -> 0.007723577236 | L11: =RTD("cqg.rtd", ,"ContractData",B11, "OPen",, "T") -> 38.69 | M11: =RTD("cqg.rtd", ,"ContractData", B11, "HIgh",, "T") -> 38.95 | N11: =RTD("cqg.rtd", ,"ContractData",B11, "LOw",, "T") -> 38.62 | O11: =RTD("cqg.rtd", ,"ContractData",B11, "T_CVol",, "T") -> 19516053 | Q11: =IFERROR(O11/RTD("cqg.rtd",,"StudyData",B11, "MA", "InputChoice=Vol,MAType=Sim,Period=21", "MA","D","-1","all",,,,"T"),"") -> 0.7487901187
B12: IWF | C12: =RTD("cqg.rtd", ,"ContractData",B12, "LongDescription",, "T") -> iShares Russell 1000 Growth ETF | H12: =RTD("cqg.rtd", ,"ContractData",B12, "LastTradeToday",, "T") -> 480.33 | I12: =RTD("cqg.rtd", ,"ContractData",B12, "NetLastTradeToday",, "T") -> -0.14 | J12: =IFERROR(RTD("cqg.rtd", ,"ContractData",B12, "PerCentNetLastTrade",, "T")/100,"") -> -0.0002913813558 | K12: =IFERROR(I12/RTD("cqg.rtd",,"StudyData",B12, "ATR", "MaType=Sim,Period=10", "ATR","D","-1","ALL",,,"FALSE","T")/100,"") -> -0.0002265005663 | L12: =RTD("cqg.rtd", ,"ContractData",B12, "OPen",, "T") -> 480.82 | M12: =RTD("cqg.rtd", ,"ContractData", B12, "HIgh",, "T") -> 481.95 | N12: =RTD("cqg.rtd", ,"ContractData",B12, "LOw",, "T") -> 479.91 | O12: =RTD("cqg.rtd", ,"ContractData",B12, "T_CVol",, "T") -> 1317877 | Q12: =IFERROR(O12/RTD("cqg.rtd",,"StudyData",B12, "MA", "InputChoice=Vol,MAType=Sim,Period=21", "MA","D","-1","all",,,,"T"),"") -> 0.712839117
B13: IWO | C13: =RTD("cqg.rtd", ,"ContractData",B13, "LongDescription",, "T") -> iShares Russell 2000 Growth ETF | H13: =RTD("cqg.rtd", ,"ContractData",B13, "LastTradeToday",, "T") -> 331.06 | I13: =RTD("cqg.rtd", ,"ContractData",B13, "NetLastTradeToday",, "T") -> -1.94 | J13: =IFERROR(RTD("cqg.rtd", ,"ContractData",B13, "PerCentNetLastTrade",, "T")/100,"") -> -0.005825825826 | K13: =IFERROR(I13/RTD("cqg.rtd",,"StudyData",B13, "ATR", "MaType=Sim,Period=10", "ATR","D","-1","ALL",,,"FALSE","T")/100,"") -> -0.003295956507 | L13: =RTD("cqg.rtd", ,"ContractData",B13, "OPen",, "T") -> 333.21 | M13: =RTD("cqg.rtd", ,"ContractData", B13, "HIgh",, "T") -> 333.23 | N13: =RTD("cqg.rtd", ,"ContractData",B13, "LOw",, "T") -> 329.31 | O13: =RTD("cqg.rtd", ,"ContractData",B13, "T_CVol",, "T") -> 412773 | Q13: =IFERROR(O13/RTD("cqg.rtd",,"StudyData",B13, "MA", "InputChoice=Vol,MAType=Sim,Period=21", "MA","D","-1","all",,,,"T"),"") -> 1.046112303
B14: EP | C14: =RTD("cqg.rtd", ,"ContractData",B14, "LongDescription",, "T") -> E-Mini S&P 500, Mar 26 | H14: =RTD("cqg.rtd", ,"ContractData",B14, "LastTradeToday",, "T") -> 6977 | I14: =RTD("cqg.rtd", ,"ContractData",B14, "NetLastTradeToday",, "T") -> -5.5 | J14: =IFERROR(RTD("cqg.rtd", ,"ContractData",B14, "PerCentNetLastTrade",, "T")/100,"") -> -0.0007876834945 | K14: =IFERROR(I14/RTD("cqg.rtd",,"StudyData",B14, "ATR", "MaType=Sim,Period=10", "ATR","D","-1","ALL",,,"FALSE","T")/100,"") -> -0.0007015306122 | L14: =RTD("cqg.rtd", ,"ContractData",B14, "OPen",, "T") -> 6979.5 | M14: =RTD("cqg.rtd", ,"ContractData", B14, "HIgh",, "T") -> 6994 | N14: =RTD("cqg.rtd", ,"ContractData",B14, "LOw",, "T") -> 6969 | O14: =RTD("cqg.rtd", ,"ContractData",B14, "T_CVol",, "T") -> 591075 | Q14: =IFERROR(O14/RTD("cqg.rtd",,"StudyData",B14, "MA", "InputChoice=Vol,MAType=Sim,Period=21", "MA","D","-1","all",,,,"T"),"") -> 0.3420747121
B15: NVDA | C15: =RTD("cqg.rtd", ,"ContractData",B15, "LongDescription",, "T") -> NVIDIA CORPORATION | H15: =RTD("cqg.rtd", ,"ContractData",B15, "LastTradeToday",, "T") -> 190.53 | I15: =RTD("cqg.rtd", ,"ContractData",B15, "NetLastTradeToday",, "T") -> 1.92 | J15: =IFERROR(RTD("cqg.rtd", ,"ContractData",B15, "PerCentNetLastTrade",, "T")/100,"") -> 0.01017973596 | K15: =IFERROR(I15/RTD("cqg.rtd",,"StudyData",B15, "ATR", "MaType=Sim,Period=10", "ATR","D","-1","ALL",,,"FALSE","T")/100,"") -> 0.003523582309 | L15: =RTD("cqg.rtd", ,"ContractData",B15, "OPen",, "T") -> 189.92 | M15: =RTD("cqg.rtd", ,"ContractData", B15, "HIgh",, "T") -> 192.69 | N15: =RTD("cqg.rtd", ,"ContractData",B15, "LOw",, "T") -> 188 | O15: =RTD("cqg.rtd", ,"ContractData",B15, "T_CVol",, "T") -> 139740292 | Q15: =IFERROR(O15/RTD("cqg.rtd",,"StudyData",B15, "MA", "InputChoice=Vol,MAType=Sim,Period=21", "MA","D","-1","all",,,,"T"),"") -> 0.7767573182
B16: USO | C16: =RTD("cqg.rtd", ,"ContractData",B16, "LongDescription",, "T") -> United States Oil Fund | H16: =RTD("cqg.rtd", ,"ContractData",B16, "LastTradeToday",, "T") -> 68.48 | I16: =RTD("cqg.rtd", ,"ContractData",B16, "NetLastTradeToday",, "T") -> -1.72 | J16: =IFERROR(RTD("cqg.rtd", ,"ContractData",B16, "PerCentNetLastTrade",, "T")/100,"") -> -0.0245014245 | K16: =IFERROR(I16/RTD("cqg.rtd",,"StudyData",B16, "ATR", "MaType=Sim,Period=10", "ATR","D","-1","ALL",,,"FALSE","T")/100,"") -> -0.01231209735 | L16: =RTD("cqg.rtd", ,"ContractData",B16, "OPen",, "T") -> 69.8 | M16: =RTD("cqg.rtd", ,"ContractData", B16, "HIgh",, "T") -> 69.8 | N16: =RTD("cqg.rtd", ,"ContractData",B16, "LOw",, "T") -> 68.17 | O16: =RTD("cqg.rtd", ,"ContractData",B16, "T_CVol",, "T") -> 4224452 | Q16: =IFERROR(O16/RTD("cqg.rtd",,"StudyData",B16, "MA", "InputChoice=Vol,MAType=Sim,Period=21", "MA","D","-1","all",,,,"T"),"") -> 0.8729813347
C17: Top 15 Description | H17: Last | I17: NC | J17: %NC | K17: NC/ATR | L17: Open | M17: High | N17: Low | O17: Volume | Q17: Ratio
A18: =TRIM(ARKK!O1) -> S.US.SLMT | B18: News | C18: =IFERROR(PROPER(RTD("cqg.rtd", ,"ContractData",A18, "LongDescription",, "T"))&" ("&RIGHT(A18,LEN(A18)-5)&")","") -> Brera Holdings B Os (SLMT) | H18: =IF(C18="","",IFERROR(RTD("cqg.rtd", ,"ContractData",A18, "LastTradeToday",, "T"),"")) -> 2.1 | I18: =IF(C18="","",IFERROR(RTD("cqg.rtd", ,"ContractData",A18, "NetLastTradeToday",, "T"),"")) -> 0.04 | J18: =IFERROR(RTD("cqg.rtd", ,"ContractData",A18, "PerCentNetLastTrade",, "T")/100,"") -> 0.01941747573 | K18: =IFERROR(I18/RTD("cqg.rtd",,"StudyData",A18, "ATR", "MaType=Sim,Period=10", "ATR","D","-1","ALL",,,"FALSE","T")/100,"") -> 0.001556420233 | L18: =IF(C18="","",IFERROR(RTD("cqg.rtd", ,"ContractData",A18, "OPen",, "T"),"")) -> 2.08 | M18: =IF(C18="","",IFERROR(RTD("cqg.rtd", ,"ContractData", A18, "HIgh",, "T"),"")) -> 2.13 | N18: =IF(C18="","",IFERROR(RTD("cqg.rtd", ,"ContractData",A18, "LOw",, "T"),"")) -> 2 | O18: =IF(C18="","",IFERROR(RTD("cqg.rtd", ,"ContractData",A18, "T_CVol",, "T"),"")) -> 881435 | Q18: =IFERROR(O18/RTD("cqg.rtd",,"StudyData",A18, "MA", "InputChoice=Vol,MAType=Sim,Period=21", "MA","D","-1","all",,,,"T"),"") -> 0.5708027547 | R18: =ARKK!R1 -> https://finance.yahoo.com/quote/SLMT
A19: =TRIM(ARKK!O2) -> S.US.BABA | B19: News | C19: =IFERROR(PROPER(RTD("cqg.rtd", ,"ContractData",A19, "LongDescription",, "T"))&" ("&RIGHT(A19,LEN(A19)-5)&")","") -> Alibaba Group Holding Ltd (BABA) | H19: =IF(C19="","",IFERROR(RTD("cqg.rtd", ,"ContractData",A19, "LastTradeToday",, "T"),"")) -> 152.24 | I19: =IF(C19="","",IFERROR(RTD("cqg.rtd", ,"ContractData",A19, "NetLastTradeToday",, "T"),"")) -> 2.18 | J19: =IFERROR(RTD("cqg.rtd", ,"ContractData",A19, "PerCentNetLastTrade",, "T")/100,"") -> 0.01452752232 | K19: =IFERROR(I19/RTD("cqg.rtd",,"StudyData",A19, "ATR", "MaType=Sim,Period=10", "ATR","D","-1","ALL",,,"FALSE","T")/100,"") -> 0.006015452539 | L19: =IF(C19="","",IFERROR(RTD("cqg.rtd", ,"ContractData",A19, "OPen",, "T"),"")) -> 150.29 | M19: =IF(C19="","",IFERROR(RTD("cqg.rtd", ,"ContractData", A19, "HIgh",, "T"),"")) -> 152.97 | N19: =IF(C19="","",IFERROR(RTD("cqg.rtd", ,"ContractData",A19, "LOw",, "T"),"")) -> 150.06 | O19: =IF(C19="","",IFERROR(RTD("cqg.rtd", ,"ContractData",A19, "T_CVol",, "T"),"")) -> 6037198 | Q19: =IFERROR(O19/RTD("cqg.rtd",,"StudyData",A19, "MA", "InputChoice=Vol,MAType=Sim,Period=21", "MA","D","-1","all",,,,"T"),"") -> 0.6337801589 | R19: =ARKK!R2 -> https://finance.yahoo.com/quote/BABA
A20: =TRIM(ARKK!O3) -> S.US.SE | B20: News | C20: =IFERROR(PROPER(RTD("cqg.rtd", ,"ContractData",A20, "LongDescription",, "T"))&" ("&RIGHT(A20,LEN(A20)-5)&")","") -> Sea Limited (SE) | H20: =IF(C20="","",IFERROR(RTD("cqg.rtd", ,"ContractData",A20, "LastTradeToday",, "T"),"")) -> 127.85 | I20: =IF(C20="","",IFERROR(RTD("cqg.rtd", ,"ContractData",A20, "NetLastTradeToday",, "T"),"")) -> 1.6 | J20: =IFERROR(RTD("cqg.rtd", ,"ContractData",A20, "PerCentNetLastTrade",, "T")/100,"") -> 0.01267326733 | K20: =IFERROR(I20/RTD("cqg.rtd",,"StudyData",A20, "ATR", "MaType=Sim,Period=10", "ATR","D","-1","ALL",,,"FALSE","T")/100,"") -> 0.003827751196 | L20: =IF(C20="","",IFERROR(RTD("cqg.rtd", ,"ContractData",A20, "OPen",, "T"),"")) -> 126.25 | M20: =IF(C20="","",IFERROR(RTD("cqg.rtd", ,"ContractData", A20, "HIgh",, "T"),"")) -> 128.52 | N20: =IF(C20="","",IFERROR(RTD("cqg.rtd", ,"ContractData",A20, "LOw",, "T"),"")) -> 125.9 | O20: =IF(C20="","",IFERROR(RTD("cqg.rtd", ,"ContractData",A20, "T_CVol",, "T"),"")) -> 1840549 | Q20: =IFERROR(O20/RTD("cqg.rtd",,"StudyData",A20, "MA", "InputChoice=Vol,MAType=Sim,Period=21", "MA","D","-1","all",,,,"T"),"") -> 0.4140498182 | R20: =ARKK!R3 -> https://finance.yahoo.com/quote/SE
A21: =TRIM(ARKK!O4) -> S.US.ROKU | B21: News | C21: =IFERROR(PROPER(RTD("cqg.rtd", ,"ContractData",A21, "LongDescription",, "T"))&" ("&RIGHT(A21,LEN(A21)-5)&")","") -> Roku, Inc. A Cmn (ROKU) | H21: =IF(C21="","",IFERROR(RTD("cqg.rtd", ,"ContractData",A21, "LastTradeToday",, "T"),"")) -> 112.08 | I21: =IF(C21="","",IFERROR(RTD("cqg.rtd", ,"ContractData",A21, "NetLastTradeToday",, "T"),"")) -> 1.4 | J21: =IFERROR(RTD("cqg.rtd", ,"ContractData",A21, "PerCentNetLastTrade",, "T")/100,"") -> 0.01264907842 | K21: =IFERROR(I21/RTD("cqg.rtd",,"StudyData",A21, "ATR", "MaType=Sim,Period=10", "ATR","D","-1","ALL",,,"FALSE","T")/100,"") -> 0.003103524717 | L21: =IF(C21="","",IFERROR(RTD("cqg.rtd", ,"ContractData",A21, "OPen",, "T"),"")) -> 110.6 | M21: =IF(C21="","",IFERROR(RTD("cqg.rtd", ,"ContractData", A21, "HIgh",, "T"),"")) -> 112.73 | N21: =IF(C21="","",IFERROR(RTD("cqg.rtd", ,"ContractData",A21, "LOw",, "T"),"")) -> 109.82 | O21: =IF(C21="","",IFERROR(RTD("cqg.rtd", ,"ContractData",A21, "T_CVol",, "T"),"")) -> 1576937 | Q21: =IFERROR(O21/RTD("cqg.rtd",,"StudyData",A21, "MA", "InputChoice=Vol,MAType=Sim,Period=21", "MA","D","-1","all",,,,"T"),"") -> 0.526830894 | R21: =ARKK!R4 -> https://finance.yahoo.com/quote/ROKU
A22: =TRIM(ARKK!O5) -> S.US.DKNG | B22: News | C22: =IFERROR(PROPER(RTD("cqg.rtd", ,"ContractData",A22, "LongDescription",, "T"))&" ("&RIGHT(A22,LEN(A22)-5)&")","") -> Draftkings Inc. Cl A (DKNG) | H22: =IF(C22="","",IFERROR(RTD("cqg.rtd", ,"ContractData",A22, "LastTradeToday",, "T"),"")) -> 34.88 | I22: =IF(C22="","",IFERROR(RTD("cqg.rtd", ,"ContractData",A22, "NetLastTradeToday",, "T"),"")) -> 0.42 | J22: =IFERROR(RTD("cqg.rtd", ,"ContractData",A22, "PerCentNetLastTrade",, "T")/100,"") -> 0.01218804411 | K22: =IFERROR(I22/RTD("cqg.rtd",,"StudyData",A22, "ATR", "MaType=Sim,Period=10", "ATR","D","-1","ALL",,,"FALSE","T")/100,"") -> 0.003376205788 | L22: =IF(C22="","",IFERROR(RTD("cqg.rtd", ,"ContractData",A22, "OPen",, "T"),"")) -> 34.38 | M22: =IF(C22="","",IFERROR(RTD("cqg.rtd", ,"ContractData", A22, "HIgh",, "T"),"")) -> 35.06 | N22: =IF(C22="","",IFERROR(RTD("cqg.rtd", ,"ContractData",A22, "LOw",, "T"),"")) -> 34.31 | O22: =IF(C22="","",IFERROR(RTD("cqg.rtd", ,"ContractData",A22, "T_CVol",, "T"),"")) -> 5487617 | Q22: =IFERROR(O22/RTD("cqg.rtd",,"StudyData",A22, "MA", "InputChoice=Vol,MAType=Sim,Period=21", "MA","D","-1","all",,,,"T"),"") -> 0.4870424328 | R22: =ARKK!R5 -> https://finance.yahoo.com/quote/DKNG
A23: =TRIM(ARKK!O6) -> S.US.NVDA | B23: News | C23: =IFERROR(PROPER(RTD("cqg.rtd", ,"ContractData",A23, "LongDescription",, "T"))&" ("&RIGHT(A23,LEN(A23)-5)&")","") -> Nvidia Corporation (NVDA) | H23: =IF(C23="","",IFERROR(RTD("cqg.rtd", ,"ContractData",A23, "LastTradeToday",, "T"),"")) -> 190.53 | I23: =IF(C23="","",IFERROR(RTD("cqg.rtd", ,"ContractData",A23, "NetLastTradeToday",, "T"),"")) -> 1.92 | J23: =IFERROR(RTD("cqg.rtd", ,"ContractData",A23, "PerCentNetLastTrade",, "T")/100,"") -> 0.01017973596 | K23: =IFERROR(I23/RTD("cqg.rtd",,"StudyData",A23, "ATR", "MaType=Sim,Period=10", "ATR","D","-1","ALL",,,"FALSE","T")/100,"") -> 0.003523582309 | L23: =IF(C23="","",IFERROR(RTD("cqg.rtd", ,"ContractData",A23, "OPen",, "T"),"")) -> 189.92 | M23: =IF(C23="","",IFERROR(RTD("cqg.rtd", ,"ContractData", A23, "HIgh",, "T"),"")) -> 192.69 | N23: =IF(C23="","",IFERROR(RTD("cqg.rtd", ,"ContractData",A23, "LOw",, "T"),"")) -> 188 | O23: =IF(C23="","",IFERROR(RTD("cqg.rtd", ,"ContractData",A23, "T_CVol",, "T"),"")) -> 139740292 | Q23: =IFERROR(O23/RTD("cqg.rtd",,"StudyData",A23, "MA", "InputChoice=Vol,MAType=Sim,Period=21", "MA","D","-1","all",,,,"T"),"") -> 0.7767573182 | R23: =ARKK!R6 -> https://finance.yahoo.com/quote/NVDA
A24: =TRIM(ARKK!O7) -> S.US.CRWD | B24: News | C24: =IFERROR(PROPER(RTD("cqg.rtd", ,"ContractData",A24, "LongDescription",, "T"))&" ("&RIGHT(A24,LEN(A24)-5)&")","") -> Crowdstrike Hld Cm A (CRWD) | H24: =IF(C24="","",IFERROR(RTD("cqg.rtd", ,"ContractData",A24, "LastTradeToday",, "T"),"")) -> 481.19 | I24: =IF(C24="","",IFERROR(RTD("cqg.rtd", ,"ContractData",A24, "NetLastTradeToday",, "T"),"")) -> 4.08 | J24: =IFERROR(RTD("cqg.rtd", ,"ContractData",A24, "PerCentNetLastTrade",, "T")/100,"") -> 0.008551487078 | K24: =IFERROR(I24/RTD("cqg.rtd",,"StudyData",A24, "ATR", "MaType=Sim,Period=10", "ATR","D","-1","ALL",,,"FALSE","T")/100,"") -> 0.002925989673 | L24: =IF(C24="","",IFERROR(RTD("cqg.rtd", ,"ContractData",A24, "OPen",, "T"),"")) -> 477 | M24: =IF(C24="","",IFERROR(RTD("cqg.rtd", ,"ContractData", A24, "HIgh",, "T"),"")) -> 482.15 | N24: =IF(C24="","",IFERROR(RTD("cqg.rtd", ,"ContractData",A24, "LOw",, "T"),"")) -> 475.15 | O24: =IF(C24="","",IFERROR(RTD("cqg.rtd", ,"ContractData",A24, "T_CVol",, "T"),"")) -> 1150652 | Q24: =IFERROR(O24/RTD("cqg.rtd",,"StudyData",A24, "MA", "InputChoice=Vol,MAType=Sim,Period=21", "MA","D","-1","all",,,,"T"),"") -> 0.4712187543 | R24: =ARKK!R7 -> https://finance.yahoo.com/quote/CRWD
A25: =TRIM(ARKK!O8) -> S.US.DASH | B25: News | C25: =IFERROR(PROPER(RTD("cqg.rtd", ,"ContractData",A25, "LongDescription",, "T"))&" ("&RIGHT(A25,LEN(A25)-5)&")","") -> Doordash, Inc. Cl A (DASH) | H25: =IF(C25="","",IFERROR(RTD("cqg.rtd", ,"ContractData",A25, "LastTradeToday",, "T"),"")) -> 233.95 | I25: =IF(C25="","",IFERROR(RTD("cqg.rtd", ,"ContractData",A25, "NetLastTradeToday",, "T"),"")) -> 1.89 | J25: =IFERROR(RTD("cqg.rtd", ,"ContractData",A25, "PerCentNetLastTrade",, "T")/100,"") -> 0.008144445402 | K25: =IFERROR(I25/RTD("cqg.rtd",,"StudyData",A25, "ATR", "MaType=Sim,Period=10", "ATR","D","-1","ALL",,,"FALSE","T")/100,"") -> 0.002703475898 | L25: =IF(C25="","",IFERROR(RTD("cqg.rtd", ,"ContractData",A25, "OPen",, "T"),"")) -> 232.52 | M25: =IF(C25="","",IFERROR(RTD("cqg.rtd", ,"ContractData", A25, "HIgh",, "T"),"")) -> 234.69 | N25: =IF(C25="","",IFERROR(RTD("cqg.rtd", ,"ContractData",A25, "LOw",, "T"),"")) -> 231.76 | O25: =IF(C25="","",IFERROR(RTD("cqg.rtd", ,"ContractData",A25, "T_CVol",, "T"),"")) -> 1706729 | Q25: =IFERROR(O25/RTD("cqg.rtd",,"StudyData",A25, "MA", "InputChoice=Vol,MAType=Sim,Period=21", "MA","D","-1","all",,,,"T"),"") -> 0.3487909895 | R25: =ARKK!R8 -> https://finance.yahoo.com/quote/DASH
A26: =TRIM(ARKK!O9) -> S.US.SHOP | B26: News | C26: =IFERROR(PROPER(RTD("cqg.rtd", ,"ContractData",A26, "LongDescription",, "T"))&" ("&RIGHT(A26,LEN(A26)-5)&")","") -> Shopify Inc. (SHOP) | H26: =IF(C26="","",IFERROR(RTD("cqg.rtd", ,"ContractData",A26, "LastTradeToday",, "T"),"")) -> 170.83 | I26: =IF(C26="","",IFERROR(RTD("cqg.rtd", ,"ContractData",A26, "NetLastTradeToday",, "T"),"")) -> 1.38 | J26: =IFERROR(RTD("cqg.rtd", ,"ContractData",A26, "PerCentNetLastTrade",, "T")/100,"") -> 0.008143995279 | K26: =IFERROR(I26/RTD("cqg.rtd",,"StudyData",A26, "ATR", "MaType=Sim,Period=10", "ATR","D","-1","ALL",,,"FALSE","T")/100,"") -> 0.00219047619 | L26: =IF(C26="","",IFERROR(RTD("cqg.rtd", ,"ContractData",A26, "OPen",, "T"),"")) -> 169.05 | M26: =IF(C26="","",IFERROR(RTD("cqg.rtd", ,"ContractData", A26, "HIgh",, "T"),"")) -> 171.07 | N26: =IF(C26="","",IFERROR(RTD("cqg.rtd", ,"ContractData",A26, "LOw",, "T"),"")) -> 168.09 | O26: =IF(C26="","",IFERROR(RTD("cqg.rtd", ,"ContractData",A26, "T_CVol",, "T"),"")) -> 2574362 | Q26: =IFERROR(O26/RTD("cqg.rtd",,"StudyData",A26, "MA", "InputChoice=Vol,MAType=Sim,Period=21", "MA","D","-1","all",,,,"T"),"") -> 0.3924716356 | R26: =ARKK!R9 -> https://finance.yahoo.com/quote/SHOP
A27: =TRIM(ARKK!O10) -> S.US.Z | B27: News | C27: =IFERROR(PROPER(RTD("cqg.rtd", ,"ContractData",A27, "LongDescription",, "T"))&" ("&RIGHT(A27,LEN(A27)-5)&")","") -> Zillow Group Cl C (Z) | H27: =IF(C27="","",IFERROR(RTD("cqg.rtd", ,"ContractData",A27, "LastTradeToday",, "T"),"")) -> 69.81 | I27: =IF(C27="","",IFERROR(RTD("cqg.rtd", ,"ContractData",A27, "NetLastTradeToday",, "T"),"")) -> 0.55 | J27: =IFERROR(RTD("cqg.rtd", ,"ContractData",A27, "PerCentNetLastTrade",, "T")/100,"") -> 0.007941091539 | K27: =IFERROR(I27/RTD("cqg.rtd",,"StudyData",A27, "ATR", "MaType=Sim,Period=10", "ATR","D","-1","ALL",,,"FALSE","T")/100,"") -> 0.001876492665 | L27: =IF(C27="","",IFERROR(RTD("cqg.rtd", ,"ContractData",A27, "OPen",, "T"),"")) -> 69.17 | M27: =IF(C27="","",IFERROR(RTD("cqg.rtd", ,"ContractData", A27, "HIgh",, "T"),"")) -> 70 | N27: =IF(C27="","",IFERROR(RTD("cqg.rtd", ,"ContractData",A27, "LOw",, "T"),"")) -> 69.17 | O27: =IF(C27="","",IFERROR(RTD("cqg.rtd", ,"ContractData",A27, "T_CVol",, "T"),"")) -> 1158996 | Q27: =IFERROR(O27/RTD("cqg.rtd",,"StudyData",A27, "MA", "InputChoice=Vol,MAType=Sim,Period=21", "MA","D","-1","all",,,,"T"),"") -> 0.4560657232 | R27: =ARKK!R10 -> https://finance.yahoo.com/quote/Z | S27: Bottom 15 Negative Performing Companies
A28: =TRIM(ARKK!O11) -> S.US.ICE | B28: News | C28: =IFERROR(PROPER(RTD("cqg.rtd", ,"ContractData",A28, "LongDescription",, "T"))&" ("&RIGHT(A28,LEN(A28)-5)&")","") -> Intercontinental, Inc. (ICE) | H28: =IF(C28="","",IFERROR(RTD("cqg.rtd", ,"ContractData",A28, "LastTradeToday",, "T"),"")) -> 163.52 | I28: =IF(C28="","",IFERROR(RTD("cqg.rtd", ,"ContractData",A28, "NetLastTradeToday",, "T"),"")) -> 0.89 | J28: =IFERROR(RTD("cqg.rtd", ,"ContractData",A28, "PerCentNetLastTrade",, "T")/100,"") -> 0.005472545041 | K28: =IFERROR(I28/RTD("cqg.rtd",,"StudyData",A28, "ATR", "MaType=Sim,Period=10", "ATR","D","-1","ALL",,,"FALSE","T")/100,"") -> 0.00426449449 | L28: =IF(C28="","",IFERROR(RTD("cqg.rtd", ,"ContractData",A28, "OPen",, "T"),"")) -> 162.45 | M28: =IF(C28="","",IFERROR(RTD("cqg.rtd", ,"ContractData", A28, "HIgh",, "T"),"")) -> 163.55 | N28: =IF(C28="","",IFERROR(RTD("cqg.rtd", ,"ContractData",A28, "LOw",, "T"),"")) -> 162.19 | O28: =IF(C28="","",IFERROR(RTD("cqg.rtd", ,"ContractData",A28, "T_CVol",, "T"),"")) -> 1045099 | Q28: =IFERROR(O28/RTD("cqg.rtd",,"StudyData",A28, "MA", "InputChoice=Vol,MAType=Sim,Period=21", "MA","D","-1","all",,,,"T"),"") -> 0.3211190976 | R28: =ARKK!R11 -> https://finance.yahoo.com/quote/ICE
A29: =TRIM(ARKK!O12) -> S.US.RBLX | B29: News | C29: =IFERROR(PROPER(RTD("cqg.rtd", ,"ContractData",A29, "LongDescription",, "T"))&" ("&RIGHT(A29,LEN(A29)-5)&")","") -> Roblox Corp (RBLX) | H29: =IF(C29="","",IFERROR(RTD("cqg.rtd", ,"ContractData",A29, "LastTradeToday",, "T"),"")) -> 82.22 | I29: =IF(C29="","",IFERROR(RTD("cqg.rtd", ,"ContractData",A29, "NetLastTradeToday",, "T"),"")) -> 0.34 | J29: =IFERROR(RTD("cqg.rtd", ,"ContractData",A29, "PerCentNetLastTrade",, "T")/100,"") -> 0.004152418173 | K29: =IFERROR(I29/RTD("cqg.rtd",,"StudyData",A29, "ATR", "MaType=Sim,Period=10", "ATR","D","-1","ALL",,,"FALSE","T")/100,"") -> 0.001145938659 | L29: =IF(C29="","",IFERROR(RTD("cqg.rtd", ,"ContractData",A29, "OPen",, "T"),"")) -> 81.72 | M29: =IF(C29="","",IFERROR(RTD("cqg.rtd", ,"ContractData", A29, "HIgh",, "T"),"")) -> 82.34 | N29: =IF(C29="","",IFERROR(RTD("cqg.rtd", ,"ContractData",A29, "LOw",, "T"),"")) -> 80.87 | O29: =IF(C29="","",IFERROR(RTD("cqg.rtd", ,"ContractData",A29, "T_CVol",, "T"),"")) -> 3863678 | Q29: =IFERROR(O29/RTD("cqg.rtd",,"StudyData",A29, "MA", "InputChoice=Vol,MAType=Sim,Period=21", "MA","D","-1","all",,,,"T"),"") -> 0.5505558167 | R29: =ARKK!R12 -> https://finance.yahoo.com/quote/RBLX
A30: =TRIM(ARKK!O13) -> S.US.MELI | B30: News | C30: =IFERROR(PROPER(RTD("cqg.rtd", ,"ContractData",A30, "LongDescription",, "T"))&" ("&RIGHT(A30,LEN(A30)-5)&")","") -> Mercadolibre, Inc. (MELI) | H30: =IF(C30="","",IFERROR(RTD("cqg.rtd", ,"ContractData",A30, "LastTradeToday",, "T"),"")) -> 2005.71 | I30: =IF(C30="","",IFERROR(RTD("cqg.rtd", ,"ContractData",A30, "NetLastTradeToday",, "T"),"")) -> 7.5 | J30: =IFERROR(RTD("cqg.rtd", ,"ContractData",A30, "PerCentNetLastTrade",, "T")/100,"") -> 0.003753359257 | K30: =IFERROR(I30/RTD("cqg.rtd",,"StudyData",A30, "ATR", "MaType=Sim,Period=10", "ATR","D","-1","ALL",,,"FALSE","T")/100,"") -> 0.00137609629 | L30: =IF(C30="","",IFERROR(RTD("cqg.rtd", ,"ContractData",A30, "OPen",, "T"),"")) -> 1998.08 | M30: =IF(C30="","",IFERROR(RTD("cqg.rtd", ,"ContractData", A30, "HIgh",, "T"),"")) -> 2012 | N30: =IF(C30="","",IFERROR(RTD("cqg.rtd", ,"ContractData",A30, "LOw",, "T"),"")) -> 1994.01 | O30: =IF(C30="","",IFERROR(RTD("cqg.rtd", ,"ContractData",A30, "T_CVol",, "T"),"")) -> 192536 | Q30: =IFERROR(O30/RTD("cqg.rtd",,"StudyData",A30, "MA", "InputChoice=Vol,MAType=Sim,Period=21", "MA","D","-1","all",,,,"T"),"") -> 0.3726316738 | R30: =ARKK!R13 -> https://finance.yahoo.com/quote/MELI
A31: =TRIM(ARKK!O14) -> S.US.XYZ | B31: News | C31: =IFERROR(PROPER(RTD("cqg.rtd", ,"ContractData",A31, "LongDescription",, "T"))&" ("&RIGHT(A31,LEN(A31)-5)&")","") -> Square, Inc (XYZ) | H31: =IF(C31="","",IFERROR(RTD("cqg.rtd", ,"ContractData",A31, "LastTradeToday",, "T"),"")) -> 66.27 | I31: =IF(C31="","",IFERROR(RTD("cqg.rtd", ,"ContractData",A31, "NetLastTradeToday",, "T"),"")) -> 0.22 | J31: =IFERROR(RTD("cqg.rtd", ,"ContractData",A31, "PerCentNetLastTrade",, "T")/100,"") -> 0.003330809992 | K31: =IFERROR(I31/RTD("cqg.rtd",,"StudyData",A31, "ATR", "MaType=Sim,Period=10", "ATR","D","-1","ALL",,,"FALSE","T")/100,"") -> 0.001195002716 | L31: =IF(C31="","",IFERROR(RTD("cqg.rtd", ,"ContractData",A31, "OPen",, "T"),"")) -> 65.87 | M31: =IF(C31="","",IFERROR(RTD("cqg.rtd", ,"ContractData", A31, "HIgh",, "T"),"")) -> 66.47 | N31: =IF(C31="","",IFERROR(RTD("cqg.rtd", ,"ContractData",A31, "LOw",, "T"),"")) -> 65.34 | O31: =IF(C31="","",IFERROR(RTD("cqg.rtd", ,"ContractData",A31, "T_CVol",, "T"),"")) -> 3118434 | Q31: =IFERROR(O31/RTD("cqg.rtd",,"StudyData",A31, "MA", "InputChoice=Vol,MAType=Sim,Period=21", "MA","D","-1","all",,,,"T"),"") -> 0.4378875185 | R31: =ARKK!R14 -> https://finance.yahoo.com/quote/XYZ
A32: =TRIM(ARKK!O15) -> S.US.FUTU | B32: News | C32: =IFERROR(PROPER(RTD("cqg.rtd", ,"ContractData",A32, "LongDescription",, "T"))&" ("&RIGHT(A32,LEN(A32)-5)&")","") -> Futu Holdings Ads (FUTU) | H32: =IF(C32="","",IFERROR(RTD("cqg.rtd", ,"ContractData",A32, "LastTradeToday",, "T"),"")) -> 165.19 | I32: =IF(C32="","",IFERROR(RTD("cqg.rtd", ,"ContractData",A32, "NetLastTradeToday",, "T"),"")) -> 0.52 | J32: =IFERROR(RTD("cqg.rtd", ,"ContractData",A32, "PerCentNetLastTrade",, "T")/100,"") -> 0.003157830813 | K32: =IFERROR(I32/RTD("cqg.rtd",,"StudyData",A32, "ATR", "MaType=Sim,Period=10", "ATR","D","-1","ALL",,,"FALSE","T")/100,"") -> 0.0009794688265 | L32: =IF(C32="","",IFERROR(RTD("cqg.rtd", ,"ContractData",A32, "OPen",, "T"),"")) -> 164.15 | M32: =IF(C32="","",IFERROR(RTD("cqg.rtd", ,"ContractData", A32, "HIgh",, "T"),"")) -> 166.17 | N32: =IF(C32="","",IFERROR(RTD("cqg.rtd", ,"ContractData",A32, "LOw",, "T"),"")) -> 163.66 | O32: =IF(C32="","",IFERROR(RTD("cqg.rtd", ,"ContractData",A32, "T_CVol",, "T"),"")) -> 402378 | Q32: =IFERROR(O32/RTD("cqg.rtd",,"StudyData",A32, "MA", "InputChoice=Vol,MAType=Sim,Period=21", "MA","D","-1","all",,,,"T"),"") -> 0.4064642627 | R32: =ARKK!R15 -> https://finance.yahoo.com/quote/FUTU
C33: Bottom 15 Description | H33: Last | I33: NC | J33: %NC | K33: NC/ATR | L33: Open | M33: High | N33: Low | O33: Volume | Q33: Ratio
A34: =TRIM(ARKK!AC1) -> S.US.BLSH | B34: News | C34: =IFERROR(PROPER(RTD("cqg.rtd", ,"ContractData",A34, "LongDescription",, "T"))&" ("&RIGHT(A34,LEN(A34)-5)&")","") -> Bullish (BLSH) | H34: =IF(C34="","",IFERROR(RTD("cqg.rtd", ,"ContractData",A34, "LastTradeToday",, "T"),"")) -> 41.14 | I34: =IF(C34="","",IFERROR(RTD("cqg.rtd", ,"ContractData",A34, "NetLastTradeToday",, "T"),"")) -> -1.72 | J34: =IFERROR(RTD("cqg.rtd", ,"ContractData",A34, "PerCentNetLastTrade",, "T")/100,"") -> -0.04013065796 | K34: =IFERROR(I34/RTD("cqg.rtd",,"StudyData",A34, "ATR", "MaType=Sim,Period=10", "ATR","D","-1","ALL",,,"FALSE","T")/100,"") -> -0.007026143791 | L34: =IF(C34="","",IFERROR(RTD("cqg.rtd", ,"ContractData",A34, "OPen",, "T"),"")) -> 42.8 | M34: =IF(C34="","",IFERROR(RTD("cqg.rtd", ,"ContractData", A34, "HIgh",, "T"),"")) -> 42.8 | N34: =IF(C34="","",IFERROR(RTD("cqg.rtd", ,"ContractData",A34, "LOw",, "T"),"")) -> 40.78 | O34: =IF(C34="","",IFERROR(RTD("cqg.rtd", ,"ContractData",A34, "T_CVol",, "T"),"")) -> 994981 | Q34: =IFERROR(O34/RTD("cqg.rtd",,"StudyData",A34, "MA", "InputChoice=Vol,MAType=Sim,Period=21", "MA","D","-1","all",,,,"T"),"") -> 0.6327649878 | R34: =ARKK!AH1 -> https://finance.yahoo.com/quote/BLSH
A35: =TRIM(ARKK!AC2) -> S.US.BMNR | B35: News | C35: =IFERROR(PROPER(RTD("cqg.rtd", ,"ContractData",A35, "LongDescription",, "T"))&" ("&RIGHT(A35,LEN(A35)-5)&")","") -> Bitmine Immersion Technologies Inc. (BMNR) | H35: =IF(C35="","",IFERROR(RTD("cqg.rtd", ,"ContractData",A35, "LastTradeToday",, "T"),"")) -> 28.31 | I35: =IF(C35="","",IFERROR(RTD("cqg.rtd", ,"ContractData",A35, "NetLastTradeToday",, "T"),"")) -> -1.04 | J35: =IFERROR(RTD("cqg.rtd", ,"ContractData",A35, "PerCentNetLastTrade",, "T")/100,"") -> -0.03543441227 | K35: =IFERROR(I35/RTD("cqg.rtd",,"StudyData",A35, "ATR", "MaType=Sim,Period=10", "ATR","D","-1","ALL",,,"FALSE","T")/100,"") -> -0.003805342115 | L35: =IF(C35="","",IFERROR(RTD("cqg.rtd", ,"ContractData",A35, "OPen",, "T"),"")) -> 29.47 | M35: =IF(C35="","",IFERROR(RTD("cqg.rtd", ,"ContractData", A35, "HIgh",, "T"),"")) -> 29.5 | N35: =IF(C35="","",IFERROR(RTD("cqg.rtd", ,"ContractData",A35, "LOw",, "T"),"")) -> 27.9 | O35: =IF(C35="","",IFERROR(RTD("cqg.rtd", ,"ContractData",A35, "T_CVol",, "T"),"")) -> 32663972 | Q35: =IFERROR(O35/RTD("cqg.rtd",,"StudyData",A35, "MA", "InputChoice=Vol,MAType=Sim,Period=21", "MA","D","-1","all",,,,"T"),"") -> 0.6517356415 | R35: =ARKK!AH2 -> https://finance.yahoo.com/quote/BMNR
A36: =TRIM(ARKK!AC3) -> S.US.DSY | B36: News | C36: =IFERROR(PROPER(RTD("cqg.rtd", ,"ContractData",A36, "LongDescription",, "T"))&" ("&RIGHT(A36,LEN(A36)-5)&")","") -> Big Tr Cld Hd Ld Ord (DSY) | H36: =IF(C36="","",IFERROR(RTD("cqg.rtd", ,"ContractData",A36, "LastTradeToday",, "T"),"")) -> 0.3 | I36: =IF(C36="","",IFERROR(RTD("cqg.rtd", ,"ContractData",A36, "NetLastTradeToday",, "T"),"")) -> -0.01 | J36: =IFERROR(RTD("cqg.rtd", ,"ContractData",A36, "PerCentNetLastTrade",, "T")/100,"") -> -0.03225806452 | K36: =IFERROR(I36/RTD("cqg.rtd",,"StudyData",A36, "ATR", "MaType=Sim,Period=10", "ATR","D","-1","ALL",,,"FALSE","T")/100,"") -> -0.003448275862 | L36: =IF(C36="","",IFERROR(RTD("cqg.rtd", ,"ContractData",A36, "OPen",, "T"),"")) -> 0.31 | M36: =IF(C36="","",IFERROR(RTD("cqg.rtd", ,"ContractData", A36, "HIgh",, "T"),"")) -> 0.31 | N36: =IF(C36="","",IFERROR(RTD("cqg.rtd", ,"ContractData",A36, "LOw",, "T"),"")) -> 0.29 | O36: =IF(C36="","",IFERROR(RTD("cqg.rtd", ,"ContractData",A36, "T_CVol",, "T"),"")) -> 68073 | Q36: =IFERROR(O36/RTD("cqg.rtd",,"StudyData",A36, "MA", "InputChoice=Vol,MAType=Sim,Period=21", "MA","D","-1","all",,,,"T"),"") -> 0.4415172276 | R36: =ARKK!AH3 -> https://finance.yahoo.com/quote/DSY
A37: =TRIM(ARKK!AC4) -> S.US.PLTR | B37: News | C37: =IFERROR(PROPER(RTD("cqg.rtd", ,"ContractData",A37, "LongDescription",, "T"))&" ("&RIGHT(A37,LEN(A37)-5)&")","") -> Palantir Tech Cl A (PLTR) | H37: =IF(C37="","",IFERROR(RTD("cqg.rtd", ,"ContractData",A37, "LastTradeToday",, "T"),"")) -> 188.71 | I37: =IF(C37="","",IFERROR(RTD("cqg.rtd", ,"ContractData",A37, "NetLastTradeToday",, "T"),"")) -> -5.46 | J37: =IFERROR(RTD("cqg.rtd", ,"ContractData",A37, "PerCentNetLastTrade",, "T")/100,"") -> -0.02811968893 | K37: =IFERROR(I37/RTD("cqg.rtd",,"StudyData",A37, "ATR", "MaType=Sim,Period=10", "ATR","D","-1","ALL",,,"FALSE","T")/100,"") -> -0.007197469022 | L37: =IF(C37="","",IFERROR(RTD("cqg.rtd", ,"ContractData",A37, "OPen",, "T"),"")) -> 195.01 | M37: =IF(C37="","",IFERROR(RTD("cqg.rtd", ,"ContractData", A37, "HIgh",, "T"),"")) -> 196.35 | N37: =IF(C37="","",IFERROR(RTD("cqg.rtd", ,"ContractData",A37, "LOw",, "T"),"")) -> 188.62 | O37: =IF(C37="","",IFERROR(RTD("cqg.rtd", ,"ContractData",A37, "T_CVol",, "T"),"")) -> 26261988 | Q37: =IFERROR(O37/RTD("cqg.rtd",,"StudyData",A37, "MA", "InputChoice=Vol,MAType=Sim,Period=21", "MA","D","-1","all",,,,"T"),"") -> 0.7390193929 | R37: =ARKK!AH4 -> https://finance.yahoo.com/quote/PLTR
A38: =TRIM(ARKK!AC5) -> S.US.KLAR | B38: News | C38: =IFERROR(PROPER(RTD("cqg.rtd", ,"ContractData",A38, "LongDescription",, "T"))&" ("&RIGHT(A38,LEN(A38)-5)&")","") -> Klarna Group Plc (KLAR) | H38: =IF(C38="","",IFERROR(RTD("cqg.rtd", ,"ContractData",A38, "LastTradeToday",, "T"),"")) -> 29.59 | I38: =IF(C38="","",IFERROR(RTD("cqg.rtd", ,"ContractData",A38, "NetLastTradeToday",, "T"),"")) -> -0.83 | J38: =IFERROR(RTD("cqg.rtd", ,"ContractData",A38, "PerCentNetLastTrade",, "T")/100,"") -> -0.02728468113 | K38: =IFERROR(I38/RTD("cqg.rtd",,"StudyData",A38, "ATR", "MaType=Sim,Period=10", "ATR","D","-1","ALL",,,"FALSE","T")/100,"") -> -0.005589225589 | L38: =IF(C38="","",IFERROR(RTD("cqg.rtd", ,"ContractData",A38, "OPen",, "T"),"")) -> 30.43 | M38: =IF(C38="","",IFERROR(RTD("cqg.rtd", ,"ContractData", A38, "HIgh",, "T"),"")) -> 30.43 | N38: =IF(C38="","",IFERROR(RTD("cqg.rtd", ,"ContractData",A38, "LOw",, "T"),"")) -> 29.47 | O38: =IF(C38="","",IFERROR(RTD("cqg.rtd", ,"ContractData",A38, "T_CVol",, "T"),"")) -> 1981959 | Q38: =IFERROR(O38/RTD("cqg.rtd",,"StudyData",A38, "MA", "InputChoice=Vol,MAType=Sim,Period=21", "MA","D","-1","all",,,,"T"),"") -> 0.9148972945 | R38: =ARKK!AH5 -> https://finance.yahoo.com/quote/KLAR
A39: =TRIM(ARKK!AC6) -> S.US.HOOD | B39: News | C39: =IFERROR(PROPER(RTD("cqg.rtd", ,"ContractData",A39, "LongDescription",, "T"))&" ("&RIGHT(A39,LEN(A39)-5)&")","") -> Robinhood Mk Cl A Cs (HOOD) | H39: =IF(C39="","",IFERROR(RTD("cqg.rtd", ,"ContractData",A39, "LastTradeToday",, "T"),"")) -> 118.13 | I39: =IF(C39="","",IFERROR(RTD("cqg.rtd", ,"ContractData",A39, "NetLastTradeToday",, "T"),"")) -> -2.31 | J39: =IFERROR(RTD("cqg.rtd", ,"ContractData",A39, "PerCentNetLastTrade",, "T")/100,"") -> -0.01917967453 | K39: =IFERROR(I39/RTD("cqg.rtd",,"StudyData",A39, "ATR", "MaType=Sim,Period=10", "ATR","D","-1","ALL",,,"FALSE","T")/100,"") -> -0.003423236515 | L39: =IF(C39="","",IFERROR(RTD("cqg.rtd", ,"ContractData",A39, "OPen",, "T"),"")) -> 120.71 | M39: =IF(C39="","",IFERROR(RTD("cqg.rtd", ,"ContractData", A39, "HIgh",, "T"),"")) -> 121.03 | N39: =IF(C39="","",IFERROR(RTD("cqg.rtd", ,"ContractData",A39, "LOw",, "T"),"")) -> 117.7 | O39: =IF(C39="","",IFERROR(RTD("cqg.rtd", ,"ContractData",A39, "T_CVol",, "T"),"")) -> 12959108 | Q39: =IFERROR(O39/RTD("cqg.rtd",,"StudyData",A39, "MA", "InputChoice=Vol,MAType=Sim,Period=21", "MA","D","-1","all",,,,"T"),"") -> 0.520373282 | R39: =ARKK!AH6 -> https://finance.yahoo.com/quote/HOOD
A40: =TRIM(ARKK!AC7) -> S.CA.SOLQ | B40: News | C40: =IFERROR(PROPER(RTD("cqg.rtd", ,"ContractData",A40, "LongDescription",, "T"))&" ("&RIGHT(A40,LEN(A40)-5)&")","") -> 3Iq Solana Staking Etf (SOLQ) | H40: =IF(C40="","",IFERROR(RTD("cqg.rtd", ,"ContractData",A40, "LastTradeToday",, "T"),"")) -> 13.32 | I40: =IF(C40="","",IFERROR(RTD("cqg.rtd", ,"ContractData",A40, "NetLastTradeToday",, "T"),"")) -> -0.26 | J40: =IFERROR(RTD("cqg.rtd", ,"ContractData",A40, "PerCentNetLastTrade",, "T")/100,"") -> -0.01914580265 | K40: =IFERROR(I40/RTD("cqg.rtd",,"StudyData",A40, "ATR", "MaType=Sim,Period=10", "ATR","D","-1","ALL",,,"FALSE","T")/100,"") -> -0.002998846597 | L40: =IF(C40="","",IFERROR(RTD("cqg.rtd", ,"ContractData",A40, "OPen",, "T"),"")) -> 13.3 | M40: =IF(C40="","",IFERROR(RTD("cqg.rtd", ,"ContractData", A40, "HIgh",, "T"),"")) -> 13.42 | N40: =IF(C40="","",IFERROR(RTD("cqg.rtd", ,"ContractData",A40, "LOw",, "T"),"")) -> 13.24 | O40: =IF(C40="","",IFERROR(RTD("cqg.rtd", ,"ContractData",A40, "T_CVol",, "T"),"")) -> 14744 | Q40: =IFERROR(O40/RTD("cqg.rtd",,"StudyData",A40, "MA", "InputChoice=Vol,MAType=Sim,Period=21", "MA","D","-1","all",,,,"T"),"") -> 0.1979851331 | R40: =ARKK!AH7 -> https://finance.yahoo.com/quote/SOLQ
A41: =TRIM(ARKK!AC8) -> S.US.CRCL | B41: News | C41: =IFERROR(PROPER(RTD("cqg.rtd", ,"ContractData",A41, "LongDescription",, "T"))&" ("&RIGHT(A41,LEN(A41)-5)&")","") -> Circle Internet Group (CRCL) | H41: =IF(C41="","",IFERROR(RTD("cqg.rtd", ,"ContractData",A41, "LastTradeToday",, "T"),"")) -> 81.27 | I41: =IF(C41="","",IFERROR(RTD("cqg.rtd", ,"ContractData",A41, "NetLastTradeToday",, "T"),"")) -> -1.37 | J41: =IFERROR(RTD("cqg.rtd", ,"ContractData",A41, "PerCentNetLastTrade",, "T")/100,"") -> -0.01657792836 | K41: =IFERROR(I41/RTD("cqg.rtd",,"StudyData",A41, "ATR", "MaType=Sim,Period=10", "ATR","D","-1","ALL",,,"FALSE","T")/100,"") -> -0.002135286783 | L41: =IF(C41="","",IFERROR(RTD("cqg.rtd", ,"ContractData",A41, "OPen",, "T"),"")) -> 82.39 | M41: =IF(C41="","",IFERROR(RTD("cqg.rtd", ,"ContractData", A41, "HIgh",, "T"),"")) -> 82.5 | N41: =IF(C41="","",IFERROR(RTD("cqg.rtd", ,"ContractData",A41, "LOw",, "T"),"")) -> 79.71 | O41: =IF(C41="","",IFERROR(RTD("cqg.rtd", ,"ContractData",A41, "T_CVol",, "T"),"")) -> 6140584 | Q41: =IFERROR(O41/RTD("cqg.rtd",,"StudyData",A41, "MA", "InputChoice=Vol,MAType=Sim,Period=21", "MA","D","-1","all",,,,"T"),"") -> 0.4561048975 | R41: =ARKK!AH8 -> https://finance.yahoo.com/quote/CRCL
A42: =TRIM(ARKK!AC9) -> S.US.SOFI | B42: News | C42: =IFERROR(PROPER(RTD("cqg.rtd", ,"ContractData",A42, "LongDescription",, "T"))&" ("&RIGHT(A42,LEN(A42)-5)&")","") -> Sofi Tech Cmn (SOFI) | H42: =IF(C42="","",IFERROR(RTD("cqg.rtd", ,"ContractData",A42, "LastTradeToday",, "T"),"")) -> 27.07 | I42: =IF(C42="","",IFERROR(RTD("cqg.rtd", ,"ContractData",A42, "NetLastTradeToday",, "T"),"")) -> -0.41 | J42: =IFERROR(RTD("cqg.rtd", ,"ContractData",A42, "PerCentNetLastTrade",, "T")/100,"") -> -0.01491994178 | K42: =IFERROR(I42/RTD("cqg.rtd",,"StudyData",A42, "ATR", "MaType=Sim,Period=10", "ATR","D","-1","ALL",,,"FALSE","T")/100,"") -> -0.003908484271 | L42: =IF(C42="","",IFERROR(RTD("cqg.rtd", ,"ContractData",A42, "OPen",, "T"),"")) -> 27.54 | M42: =IF(C42="","",IFERROR(RTD("cqg.rtd", ,"ContractData", A42, "HIgh",, "T"),"")) -> 27.55 | N42: =IF(C42="","",IFERROR(RTD("cqg.rtd", ,"ContractData",A42, "LOw",, "T"),"")) -> 27.03 | O42: =IF(C42="","",IFERROR(RTD("cqg.rtd", ,"ContractData",A42, "T_CVol",, "T"),"")) -> 24735553 | Q42: =IFERROR(O42/RTD("cqg.rtd",,"StudyData",A42, "MA", "InputChoice=Vol,MAType=Sim,Period=21", "MA","D","-1","all",,,,"T"),"") -> 0.4751643165 | R42: =ARKK!AH9 -> https://finance.yahoo.com/quote/SOFI
A43: =TRIM(ARKK!AC10) -> S.US.COIN | B43: News | C43: =IFERROR(PROPER(RTD("cqg.rtd", ,"ContractData",A43, "LongDescription",, "T"))&" ("&RIGHT(A43,LEN(A43)-5)&")","") -> Coinbase Glb Cl A Cm (COIN) | H43: =IF(C43="","",IFERROR(RTD("cqg.rtd", ,"ContractData",A43, "LastTradeToday",, "T"),"")) -> 236.9 | I43: =IF(C43="","",IFERROR(RTD("cqg.rtd", ,"ContractData",A43, "NetLastTradeToday",, "T"),"")) -> -2.83 | J43: =IFERROR(RTD("cqg.rtd", ,"ContractData",A43, "PerCentNetLastTrade",, "T")/100,"") -> -0.01180494723 | K43: =IFERROR(I43/RTD("cqg.rtd",,"StudyData",A43, "ATR", "MaType=Sim,Period=10", "ATR","D","-1","ALL",,,"FALSE","T")/100,"") -> -0.002285206718 | L43: =IF(C43="","",IFERROR(RTD("cqg.rtd", ,"ContractData",A43, "OPen",, "T"),"")) -> 240.4 | M43: =IF(C43="","",IFERROR(RTD("cqg.rtd", ,"ContractData", A43, "HIgh",, "T"),"")) -> 240.49 | N43: =IF(C43="","",IFERROR(RTD("cqg.rtd", ,"ContractData",A43, "LOw",, "T"),"")) -> 232.8 | O43: =IF(C43="","",IFERROR(RTD("cqg.rtd", ,"ContractData",A43, "T_CVol",, "T"),"")) -> 5925726 | Q43: =IFERROR(O43/RTD("cqg.rtd",,"StudyData",A43, "MA", "InputChoice=Vol,MAType=Sim,Period=21", "MA","D","-1","all",,,,"T"),"") -> 0.7246020918 | R43: =ARKK!AH10 -> https://finance.yahoo.com/quote/COIN
A44: =TRIM(ARKK!AC11) -> S.CA.ETHQ | B44: News | C44: =IFERROR(PROPER(RTD("cqg.rtd", ,"ContractData",A44, "LongDescription",, "T"))&" ("&RIGHT(A44,LEN(A44)-5)&")","") -> 3Iq Ether Staking Etf (ETHQ) | H44: =IF(C44="","",IFERROR(RTD("cqg.rtd", ,"ContractData",A44, "LastTradeToday",, "T"),"")) -> 15.68 | I44: =IF(C44="","",IFERROR(RTD("cqg.rtd", ,"ContractData",A44, "NetLastTradeToday",, "T"),"")) -> -0.18 | J44: =IFERROR(RTD("cqg.rtd", ,"ContractData",A44, "PerCentNetLastTrade",, "T")/100,"") -> -0.01134930643 | K44: =IFERROR(I44/RTD("cqg.rtd",,"StudyData",A44, "ATR", "MaType=Sim,Period=10", "ATR","D","-1","ALL",,,"FALSE","T")/100,"") -> -0.002095459837 | L44: =IF(C44="","",IFERROR(RTD("cqg.rtd", ,"ContractData",A44, "OPen",, "T"),"")) -> 15.62 | M44: =IF(C44="","",IFERROR(RTD("cqg.rtd", ,"ContractData", A44, "HIgh",, "T"),"")) -> 15.73 | N44: =IF(C44="","",IFERROR(RTD("cqg.rtd", ,"ContractData",A44, "LOw",, "T"),"")) -> 15.47 | O44: =IF(C44="","",IFERROR(RTD("cqg.rtd", ,"ContractData",A44, "T_CVol",, "T"),"")) -> 2676 | Q44: =IFERROR(O44/RTD("cqg.rtd",,"StudyData",A44, "MA", "InputChoice=Vol,MAType=Sim,Period=21", "MA","D","-1","all",,,,"T"),"") -> 0.332630931 | R44: =ARKK!AH11 -> https://finance.yahoo.com/quote/ETHQ
A45: =TRIM(ARKK!AC12) -> S.US.META | B45: News | C45: =IFERROR(PROPER(RTD("cqg.rtd", ,"ContractData",A45, "LongDescription",, "T"))&" ("&RIGHT(A45,LEN(A45)-5)&")","") -> Meta Platforms, Inc. (META) | H45: =IF(C45="","",IFERROR(RTD("cqg.rtd", ,"ContractData",A45, "LastTradeToday",, "T"),"")) -> 663.29 | I45: =IF(C45="","",IFERROR(RTD("cqg.rtd", ,"ContractData",A45, "NetLastTradeToday",, "T"),"")) -> -4.26 | J45: =IFERROR(RTD("cqg.rtd", ,"ContractData",A45, "PerCentNetLastTrade",, "T")/100,"") -> -0.006381544454 | K45: =IFERROR(I45/RTD("cqg.rtd",,"StudyData",A45, "ATR", "MaType=Sim,Period=10", "ATR","D","-1","ALL",,,"FALSE","T")/100,"") -> -0.003069164265 | L45: =IF(C45="","",IFERROR(RTD("cqg.rtd", ,"ContractData",A45, "OPen",, "T"),"")) -> 668.06 | M45: =IF(C45="","",IFERROR(RTD("cqg.rtd", ,"ContractData", A45, "HIgh",, "T"),"")) -> 668.94 | N45: =IF(C45="","",IFERROR(RTD("cqg.rtd", ,"ContractData",A45, "LOw",, "T"),"")) -> 661.32 | O45: =IF(C45="","",IFERROR(RTD("cqg.rtd", ,"ContractData",A45, "T_CVol",, "T"),"")) -> 7133813 | Q45: =IFERROR(O45/RTD("cqg.rtd",,"StudyData",A45, "MA", "InputChoice=Vol,MAType=Sim,Period=21", "MA","D","-1","all",,,,"T"),"") -> 0.4232476368 | R45: =ARKK!AH12 -> https://finance.yahoo.com/quote/META
A46: =TRIM(ARKK!AC13) -> S.US.ARKF | B46: News | C46: =IFERROR(PROPER(RTD("cqg.rtd", ,"ContractData",A46, "LongDescription",, "T"))&" ("&RIGHT(A46,LEN(A46)-5)&")","") -> Ark Blockchain & Fintech Innovation Etf (ARKF) | H46: =IF(C46="","",IFERROR(RTD("cqg.rtd", ,"ContractData",A46, "LastTradeToday",, "T"),"")) -> 48.94 | I46: =IF(C46="","",IFERROR(RTD("cqg.rtd", ,"ContractData",A46, "NetLastTradeToday",, "T"),"")) -> -0.28 | J46: =IFERROR(RTD("cqg.rtd", ,"ContractData",A46, "PerCentNetLastTrade",, "T")/100,"") -> -0.005688744413 | K46: =IFERROR(I46/RTD("cqg.rtd",,"StudyData",A46, "ATR", "MaType=Sim,Period=10", "ATR","D","-1","ALL",,,"FALSE","T")/100,"") -> -0.002287581699 | L46: =IF(C46="","",IFERROR(RTD("cqg.rtd", ,"ContractData",A46, "OPen",, "T"),"")) -> 49.12 | M46: =IF(C46="","",IFERROR(RTD("cqg.rtd", ,"ContractData", A46, "HIgh",, "T"),"")) -> 49.18 | N46: =IF(C46="","",IFERROR(RTD("cqg.rtd", ,"ContractData",A46, "LOw",, "T"),"")) -> 48.7 | O46: =IF(C46="","",IFERROR(RTD("cqg.rtd", ,"ContractData",A46, "T_CVol",, "T"),"")) -> 152527 | Q46: =IFERROR(O46/RTD("cqg.rtd",,"StudyData",A46, "MA", "InputChoice=Vol,MAType=Sim,Period=21", "MA","D","-1","all",,,,"T"),"") -> 0.8419434687 | R46: =ARKK!AH13 -> https://finance.yahoo.com/quote/ARKF
A47: =TRIM(ARKK!AC14) -> S.US.SPOT | B47: News | C47: =IFERROR(PROPER(RTD("cqg.rtd", ,"ContractData",A47, "LongDescription",, "T"))&" ("&RIGHT(A47,LEN(A47)-5)&")","") -> Spotify Technology S.A. (SPOT) | H47: =IF(C47="","",IFERROR(RTD("cqg.rtd", ,"ContractData",A47, "LastTradeToday",, "T"),"")) -> 584.35 | I47: =IF(C47="","",IFERROR(RTD("cqg.rtd", ,"ContractData",A47, "NetLastTradeToday",, "T"),"")) -> -2.22 | J47: =IFERROR(RTD("cqg.rtd", ,"ContractData",A47, "PerCentNetLastTrade",, "T")/100,"") -> -0.003784714527 | K47: =IFERROR(I47/RTD("cqg.rtd",,"StudyData",A47, "ATR", "MaType=Sim,Period=10", "ATR","D","-1","ALL",,,"FALSE","T")/100,"") -> -0.00136313398 | L47: =IF(C47="","",IFERROR(RTD("cqg.rtd", ,"ContractData",A47, "OPen",, "T"),"")) -> 585.07 | M47: =IF(C47="","",IFERROR(RTD("cqg.rtd", ,"ContractData", A47, "HIgh",, "T"),"")) -> 588.52 | N47: =IF(C47="","",IFERROR(RTD("cqg.rtd", ,"ContractData",A47, "LOw",, "T"),"")) -> 580.02 | O47: =IF(C47="","",IFERROR(RTD("cqg.rtd", ,"ContractData",A47, "T_CVol",, "T"),"")) -> 565251 | Q47: =IFERROR(O47/RTD("cqg.rtd",,"StudyData",A47, "MA", "InputChoice=Vol,MAType=Sim,Period=21", "MA","D","-1","all",,,,"T"),"") -> 0.2974123909 | R47: =ARKK!AH14 -> https://finance.yahoo.com/quote/SPOT
A48: =TRIM(ARKK!AC15) -> S.US.GLBE | B48: News | C48: =IFERROR(PROPER(RTD("cqg.rtd", ,"ContractData",A48, "LongDescription",, "T"))&" ("&RIGHT(A48,LEN(A48)-5)&")","") -> Global-E Online Cm (GLBE) | H48: =IF(C48="","",IFERROR(RTD("cqg.rtd", ,"ContractData",A48, "LastTradeToday",, "T"),"")) -> 39.6 | I48: =IF(C48="","",IFERROR(RTD("cqg.rtd", ,"ContractData",A48, "NetLastTradeToday",, "T"),"")) -> -0.13 | J48: =IFERROR(RTD("cqg.rtd", ,"ContractData",A48, "PerCentNetLastTrade",, "T")/100,"") -> -0.003272086584 | K48: =IFERROR(I48/RTD("cqg.rtd",,"StudyData",A48, "ATR", "MaType=Sim,Period=10", "ATR","D","-1","ALL",,,"FALSE","T")/100,"") -> -0.0009406657019 | L48: =IF(C48="","",IFERROR(RTD("cqg.rtd", ,"ContractData",A48, "OPen",, "T"),"")) -> 39.94 | M48: =IF(C48="","",IFERROR(RTD("cqg.rtd", ,"ContractData", A48, "HIgh",, "T"),"")) -> 39.94 | N48: =IF(C48="","",IFERROR(RTD("cqg.rtd", ,"ContractData",A48, "LOw",, "T"),"")) -> 39.3 | O48: =IF(C48="","",IFERROR(RTD("cqg.rtd", ,"ContractData",A48, "T_CVol",, "T"),"")) -> 372292 | Q48: =IFERROR(O48/RTD("cqg.rtd",,"StudyData",A48, "MA", "InputChoice=Vol,MAType=Sim,Period=21", "MA","D","-1","all",,,,"T"),"") -> 0.3073844264 | R48: =ARKK!AH15 -> https://finance.yahoo.com/quote/GLBE
C49: CQG Inc., Copyright © 2025 | G49: Designed by Thom Hartle | J49: From their website: "invests at least 80% of its assets in equity securities of companies engaged in the Fund’s investment theme of blockchain and fintech innovation." | Z49: =Z52 -> 52% of the stocks in the ETF are higher today
Z51: =ARKK!B103 -> 0.5238095238 | AA51: of the stocks in the ETF are higher today
Z52: =TEXT(Display!Z51,"0%")&" "&Display!AA51 -> 52% of the stocks in the ETF are higher today

Sheet ARKK (hidden)
A1: =IF(Symbols!A1="","",Symbols!A1) -> S.CA.ETHQ | B1: =IF(A1="","",IF(J1>0,1,0)) -> 0 | C1: =A1 -> S.CA.ETHQ | D1: =IF(A1="","",RTD("cqg.rtd", ,"ContractData",C1, "LongDescription",, "T")) -> 3iQ Ether Staking ETF | F1: =("$J$"&"1"&":$J$"&A103) -> $J$1:$J$42 | H1: =IF(A1="","",RTD("cqg.rtd", ,"ContractData",C1, "LastTradeToday",, "T")) -> 15.68 | I1: =IF(A1="","",RTD("cqg.rtd", ,"ContractData",C1, "NetLastTradeToday",, "T")) -> -0.18 | J1: =IF(A1="","",IFERROR(RTD("cqg.rtd", ,"ContractData",C1, "PerCentNetLastTrade",, "T")/100,"")) -> -0.01134930643 | K1: =IF(A1="","",RTD("cqg.rtd", ,"ContractData", C1, "T_CVol",, "T")) -> 2676 | L1: 1 | M1: =IFERROR(RANK($J1,INDIRECT(("$J$"&"1"&":$J$"&$A$103)))+COUNTIF($J$1:J1,J1)-1,"") -> 31 | N1: =C1 -> S.CA.ETHQ | O1: =IFERROR(VLOOKUP($L1,$M$1:$N$101,2,FALSE),"") -> S.US.SLMT | P1: =IF(O1="","",PROPER(RTD("cqg.rtd", ,"ContractData",O1, "LongDescription",, "T"))) -> Brera Holdings B Os | Q1: =IFERROR(RTD("cqg.rtd", ,"ContractData",O1, "PerCentNetLastTrade",, "T")/100,"") -> 0.01941747573 | R1: =IFERROR("https://finance.yahoo.com/quote/"&RIGHT(O1,(LEN(O1)-5)),"") -> https://finance.yahoo.com/quote/SLMT | T1: =IF(Q1>=0,Q1,NA()) -> 0.01941747573 | U1: =IFERROR(IF(Q1>=0,NA(),-1*Q1),"") ->  | W1: =IF(Q1="","",IF(Q1<0,"",IFERROR(PROPER(RTD("cqg.rtd", ,"ContractData",O1, "LongDescription",, "T")),""))) -> Brera Holdings B Os | Z1: =IF(W1="","",IFERROR(T1,Q1)) -> 0.01941747573 | AA1: =MIN(J1:J101) -> -0.04013065796 | AB1: =IFERROR(VLOOKUP(AA1,J1:O98,4,FALSE),"") -> 41 | AC1: =IF(AB1="","",VLOOKUP($AB1,$M$1:$N$101,2,FALSE)) -> S.US.BLSH | AD1: =IF(RTD("cqg.rtd", ,"ContractData",AC1, "PerCentNetLastTrade",, "T")>0,"",IFERROR(RTD("cqg.rtd", ,"ContractData",AC1, "PerCentNetLastTrade",, "T")/100,"")) -> -0.04013065796 | AE1: =IF(AD1>0,"",IFERROR(PROPER(RTD("cqg.rtd", ,"ContractData",AC1, "LongDescription",, "T")),"")) -> Bullish | AF1: ="" ->  | AG1: =IF(AD1>0,"",IFERROR(AD1*-1,"")) -> 0.04013065796 | AH1: =IFERROR("https://finance.yahoo.com/quote/"&RIGHT(AC1,(LEN(AC1)-5)),"") -> https://finance.yahoo.com/quote/BLSH
A2: =IF(Symbols!A2="","",Symbols!A2) -> S.CA.SOLQ | B2: =IF(A2="","",IF(J2>0,1,0)) -> 0 | C2: =A2 -> S.CA.SOLQ | D2: =IF(A2="","",RTD("cqg.rtd", ,"ContractData",C2, "LongDescription",, "T")) -> 3IQ SOLANA STAKING ETF | H2: =IF(A2="","",RTD("cqg.rtd", ,"ContractData",C2, "LastTradeToday",, "T")) -> 13.32 | I2: =IF(A2="","",RTD("cqg.rtd", ,"ContractData",C2, "NetLastTradeToday",, "T")) -> -0.26 | J2: =IF(A2="","",IFERROR(RTD("cqg.rtd", ,"ContractData",C2, "PerCentNetLastTrade",, "T")/100,"")) -> -0.01914580265 | K2: =IF(A2="","",RTD("cqg.rtd", ,"ContractData", C2, "T_CVol",, "T")) -> 14744 | L2: =L1+1 -> 2 | M2: =IFERROR(RANK($J2,INDIRECT(("$J$"&"1"&":$J$"&$A$103)))+COUNTIF($J$1:J2,J2)-1,"") -> 35 | N2: =C2 -> S.CA.SOLQ | O2: =IFERROR(VLOOKUP($L2,$M$1:$N$101,2,FALSE),"") -> S.US.BABA | P2: =IF(O2="","",PROPER(RTD("cqg.rtd", ,"ContractData",O2, "LongDescription",, "T"))) -> Alibaba Group Holding Ltd | Q2: =IFERROR(RTD("cqg.rtd", ,"ContractData",O2, "PerCentNetLastTrade",, "T")/100,"") -> 0.01452752232 | R2: =IFERROR("https://finance.yahoo.com/quote/"&RIGHT(O2,(LEN(O2)-5)),"") -> https://finance.yahoo.com/quote/BABA | T2: =IF(Q2>=0,Q2,NA()) -> 0.01452752232 | U2: =IFERROR(IF(Q2>=0,NA(),-1*Q2),"") ->  | W2: =IF(Q2="","",IF(Q2<0,"",IFERROR(PROPER(RTD("cqg.rtd", ,"ContractData",O2, "LongDescription",, "T")),""))) -> Alibaba Group Holding Ltd | Z2: =IF(W2="","",IFERROR(T2,Q2)) -> 0.01452752232 | AB2: =IFERROR(AB1-1,"") -> 40 | AC2: =IFERROR(IF(AB2="","",VLOOKUP($AB2,$M$1:$N$101,2,FALSE)),"") -> S.US.BMNR | AD2: =IF(RTD("cqg.rtd", ,"ContractData",AC2, "PerCentNetLastTrade",, "T")>0,"",IFERROR(RTD("cqg.rtd", ,"ContractData",AC2, "PerCentNetLastTrade",, "T")/100,"")) -> -0.03543441227 | AE2: =IF(AD2>0,"",IFERROR(PROPER(RTD("cqg.rtd", ,"ContractData",AC2, "LongDescription",, "T")),"")) -> Bitmine Immersion Technologies Inc. | AF2: ="" ->  | AG2: =IF(AD2>0,"",IFERROR(AD2*-1,"")) -> 0.03543441227 | AH2: =IFERROR("https://finance.yahoo.com/quote/"&RIGHT(AC2,(LEN(AC2)-5)),"") -> https://finance.yahoo.com/quote/BMNR
A3: =IF(Symbols!A3="","",Symbols!A3) -> S.JP.J4689 | B3: 0 | C3: S.JP.J4689 | D3: =IF(A3="","",RTD("cqg.rtd", ,"ContractData",C3, "LongDescription",, "T")) -> Yahoo Japan Corp | H3: =IF(A3="","",RTD("cqg.rtd", ,"ContractData",C3, "LastTradeToday",, "T")) -> 413 | I3: =IF(A3="","",RTD("cqg.rtd", ,"ContractData",C3, "NetLastTradeToday",, "T")) -> 0 | J3: =IF(A3="","",IFERROR(RTD("cqg.rtd", ,"ContractData",C3, "PerCentNetLastTrade",, "T")/100,"")) -> 0 | K3: =IF(A3="","",RTD("cqg.rtd", ,"ContractData", C3, "T_CVol",, "T")) -> 105834 | L3: =L2+1 -> 3 | M3: =IFERROR(RANK($J3,INDIRECT(("$J$"&"1"&":$J$"&$A$103)))+COUNTIF($J$1:J3,J3)-1,"") -> 22 | N3: S.JP.J4689 | O3: S.US.SE | P3: =IF(O3="","",PROPER(RTD("cqg.rtd", ,"ContractData",O3, "LongDescription",, "T"))) -> Sea Limited | Q3: =IFERROR(RTD("cqg.rtd", ,"ContractData",O3, "PerCentNetLastTrade",, "T")/100,"") -> 0.01267326733 | R3: https://finance.yahoo.com/quote/SE | T3: 0.01267326733 | W3: =IF(Q3="","",IF(Q3<0,"",IFERROR(PROPER(RTD("cqg.rtd", ,"ContractData",O3, "LongDescription",, "T")),""))) -> Sea Limited | Z3: 0.01267326733 | AB3: =IFERROR(AB2-1,"") -> 39 | AC3: =IFERROR(IF(AB3="","",VLOOKUP($AB3,$M$1:$N$101,2,FALSE)),"") -> S.US.DSY | AD3: =IF(RTD("cqg.rtd", ,"ContractData",AC3, "PerCentNetLastTrade",, "T")>0,"",IFERROR(RTD("cqg.rtd", ,"ContractData",AC3, "PerCentNetLastTrade",, "T")/100,"")) -> -0.03225806452 | AE3: =IF(AD3>0,"",IFERROR(PROPER(RTD("cqg.rtd", ,"ContractData",AC3, "LongDescription",, "T")),"")) -> Big Tr Cld Hd Ld Ord | AF3: ="" ->  | AG3: 0.03225806452 | AH3: https://finance.yahoo.com/quote/DSY
A4: =IF(Symbols!A4="","",Symbols!A4) -> S.NL.ADYEN | B4: 1 | C4: S.NL.ADYEN | D4: =IF(A4="","",RTD("cqg.rtd", ,"ContractData",C4, "LongDescription",, "T")) -> Adyen N.V. | H4: =IF(A4="","",RTD("cqg.rtd", ,"ContractData",C4, "LastTradeToday",, "T")) ->  | I4: =IF(A4="","",RTD("cqg.rtd", ,"ContractData",C4, "NetLastTradeToday",, "T")) ->  | J4: =IF(A4="","",IFERROR(RTD("cqg.rtd", ,"ContractData",C4, "PerCentNetLastTrade",, "T")/100,"")) ->  | K4: =IF(A4="","",RTD("cqg.rtd", ,"ContractData", C4, "T_CVol",, "T")) -> 6869 | L4: 4 | M4: =IFERROR(RANK($J4,INDIRECT(("$J$"&"1"&":$J$"&$A$103)))+COUNTIF($J$1:J4,J4)-1,"") ->  | N4: S.NL.ADYEN | O4: S.US.ROKU | P4: =IF(O4="","",PROPER(RTD("cqg.rtd", ,"ContractData",O4, "LongDescription",, "T"))) -> Roku, Inc. A Cmn | Q4: =IFERROR(RTD("cqg.rtd", ,"ContractData",O4, "PerCentNetLastTrade",, "T")/100,"") -> 0.01264907842 | R4: https://finance.yahoo.com/quote/ROKU | T4: 0.01264907842 | W4: =IF(Q4="","",IF(Q4<0,"",IFERROR(PROPER(RTD("cqg.rtd", ,"ContractData",O4, "LongDescription",, "T")),""))) -> Roku, Inc. A Cmn | Z4: 0.01264907842 | AB4: 38 | AC4: S.US.PLTR | AD4: =IF(RTD("cqg.rtd", ,"ContractData",AC4, "PerCentNetLastTrade",, "T")>0,"",IFERROR(RTD("cqg.rtd", ,"ContractData",AC4, "PerCentNetLastTrade",, "T")/100,"")) -> -0.02811968893 | AE4: =IF(AD4>0,"",IFERROR(PROPER(RTD("cqg.rtd", ,"ContractData",AC4, "LongDescription",, "T")),"")) -> Palantir Tech Cl A | AF4: ="" ->  | AG4: 0.02811968893 | AH4: https://finance.yahoo.com/quote/PLTR
A5: =IF(Symbols!A5="","",Symbols!A5) -> S.US.ABNB | B5: 1 | C5: S.US.ABNB | D5: =IF(A5="","",RTD("cqg.rtd", ,"ContractData",C5, "LongDescription",, "T")) -> Airbnb, Inc. Class A | H5: =IF(A5="","",RTD("cqg.rtd", ,"ContractData",C5, "LastTradeToday",, "T")) -> 136.82 | I5: =IF(A5="","",RTD("cqg.rtd", ,"ContractData",C5, "NetLastTradeToday",, "T")) -> 0.04 | J5: =IF(A5="","",IFERROR(RTD("cqg.rtd", ,"ContractData",C5, "PerCentNetLastTrade",, "T")/100,"")) -> 0.0002924404153 | K5: =IF(A5="","",RTD("cqg.rtd", ,"ContractData", C5, "T_CVol",, "T")) -> 1776009 | L5: 5 | M5: =IFERROR(RANK($J5,INDIRECT(("$J$"&"1"&":$J$"&$A$103)))+COUNTIF($J$1:J5,J5)-1,"") -> 21 | N5: S.US.ABNB | O5: S.US.DKNG | P5: =IF(O5="","",PROPER(RTD("cqg.rtd", ,"ContractData",O5, "LongDescription",, "T"))) -> Draftkings Inc. Cl A | Q5: =IFERROR(RTD("cqg.rtd", ,"ContractData",O5, "PerCentNetLastTrade",, "T")/100,"") -> 0.01218804411 | R5: https://finance.yahoo.com/quote/DKNG | T5: 0.01218804411 | W5: =IF(Q5="","",IF(Q5<0,"",IFERROR(PROPER(RTD("cqg.rtd", ,"ContractData",O5, "LongDescription",, "T")),""))) -> Draftkings Inc. Cl A | Z5: 0.01218804411 | AB5: 37 | AC5: S.US.KLAR | AD5: =IF(RTD("cqg.rtd", ,"ContractData",AC5, "PerCentNetLastTrade",, "T")>0,"",IFERROR(RTD("cqg.rtd", ,"ContractData",AC5, "PerCentNetLastTrade",, "T")/100,"")) -> -0.02728468113 | AE5: =IF(AD5>0,"",IFERROR(PROPER(RTD("cqg.rtd", ,"ContractData",AC5, "LongDescription",, "T")),"")) -> Klarna Group Plc | AF5: ="" ->  | AG5: 0.02728468113 | AH5: https://finance.yahoo.com/quote/KLAR
A6: =IF(Symbols!A6="","",Symbols!A6) -> S.US.AMD | B6: 0 | C6: S.US.AMD | D6: =IF(A6="","",RTD("cqg.rtd", ,"ContractData",C6, "LongDescription",, "T")) -> ADV MICRO DEVICES | H6: =IF(A6="","",RTD("cqg.rtd", ,"ContractData",C6, "LastTradeToday",, "T")) -> 214.99 | I6: =IF(A6="","",RTD("cqg.rtd", ,"ContractData",C6, "NetLastTradeToday",, "T")) -> -0.05 | J6: =IF(A6="","",IFERROR(RTD("cqg.rtd", ,"ContractData",C6, "PerCentNetLastTrade",, "T")/100,"")) -> -0.000232514881 | K6: =IF(A6="","",RTD("cqg.rtd", ,"ContractData", C6, "T_CVol",, "T")) -> 15792558 | L6: 6 | M6: =IFERROR(RANK($J6,INDIRECT(("$J$"&"1"&":$J$"&$A$103)))+COUNTIF($J$1:J6,J6)-1,"") -> 23 | N6: S.US.AMD | O6: S.US.NVDA | P6: =IF(O6="","",PROPER(RTD("cqg.rtd", ,"ContractData",O6, "LongDescription",, "T"))) -> Nvidia Corporation | Q6: =IFERROR(RTD("cqg.rtd", ,"ContractData",O6, "PerCentNetLastTrade",, "T")/100,"") -> 0.01017973596 | R6: https://finance.yahoo.com/quote/NVDA | T6: 0.01017973596 | W6: =IF(Q6="","",IF(Q6<0,"",IFERROR(PROPER(RTD("cqg.rtd", ,"ContractData",O6, "LongDescription",, "T")),""))) -> Nvidia Corporation | Z6: 0.01017973596 | AB6: 36 | AC6: S.US.HOOD | AD6: =IF(RTD("cqg.rtd", ,"ContractData",AC6, "PerCentNetLastTrade",, "T")>0,"",IFERROR(RTD("cqg.rtd", ,"ContractData",AC6, "PerCentNetLastTrade",, "T")/100,"")) -> -0.01917967453 | AE6: =IF(AD6>0,"",IFERROR(PROPER(RTD("cqg.rtd", ,"ContractData",AC6, "LongDescription",, "T")),"")) -> Robinhood Mk Cl A Cs | AF6: ="" ->  | AG6: 0.01917967453 | AH6: https://finance.yahoo.com/quote/HOOD
A7: =IF(Symbols!A7="","",Symbols!A7) -> S.US.AMZN | B7: 1 | C7: S.US.AMZN | D7: =IF(A7="","",RTD("cqg.rtd", ,"ContractData",C7, "LongDescription",, "T")) -> Amazon.com Inc | H7: =IF(A7="","",RTD("cqg.rtd", ,"ContractData",C7, "LastTradeToday",, "T")) -> 232.52 | I7: =IF(A7="","",RTD("cqg.rtd", ,"ContractData",C7, "NetLastTradeToday",, "T")) -> 0.14 | J7: =IF(A7="","",IFERROR(RTD("cqg.rtd", ,"ContractData",C7, "PerCentNetLastTrade",, "T")/100,"")) -> 0.0006024614855 | K7: =IF(A7="","",RTD("cqg.rtd", ,"ContractData", C7, "T_CVol",, "T")) -> 15994726 | L7: 7 | M7: =IFERROR(RANK($J7,INDIRECT(("$J$"&"1"&":$J$"&$A$103)))+COUNTIF($J$1:J7,J7)-1,"") -> 19 | N7: S.US.AMZN | O7: S.US.CRWD | P7: =IF(O7="","",PROPER(RTD("cqg.rtd", ,"ContractData",O7, "LongDescription",, "T"))) -> Crowdstrike Hld Cm A | Q7: =IFERROR(RTD("cqg.rtd", ,"ContractData",O7, "PerCentNetLastTrade",, "T")/100,"") -> 0.008551487078 | R7: https://finance.yahoo.com/quote/CRWD | T7: 0.008551487078 | W7: =IF(Q7="","",IF(Q7<0,"",IFERROR(PROPER(RTD("cqg.rtd", ,"ContractData",O7, "LongDescription",, "T")),""))) -> Crowdstrike Hld Cm A | Z7: 0.008551487078 | AB7: 35 | AC7: S.CA.SOLQ | AD7: =IF(RTD("cqg.rtd", ,"ContractData",AC7, "PerCentNetLastTrade",, "T")>0,"",IFERROR(RTD("cqg.rtd", ,"ContractData",AC7, "PerCentNetLastTrade",, "T")/100,"")) -> -0.01914580265 | AE7: =IF(AD7>0,"",IFERROR(PROPER(RTD("cqg.rtd", ,"ContractData",AC7, "LongDescription",, "T")),"")) -> 3Iq Solana Staking Etf | AF7: ="" ->  | AG7: 0.01914580265 | AH7: https://finance.yahoo.com/quote/SOLQ
A8: =IF(Symbols!A8="","",Symbols!A8) -> S.US.ARKF | B8: 0 | C8: S.US.ARKF | D8: =IF(A8="","",RTD("cqg.rtd", ,"ContractData",C8, "LongDescription",, "T")) -> ARK Blockchain & Fintech Innovation ETF | H8: =IF(A8="","",RTD("cqg.rtd", ,"ContractData",C8, "LastTradeToday",, "T")) -> 48.94 | I8: =IF(A8="","",RTD("cqg.rtd", ,"ContractData",C8, "NetLastTradeToday",, "T")) -> -0.28 | J8: =IF(A8="","",IFERROR(RTD("cqg.rtd", ,"ContractData",C8, "PerCentNetLastTrade",, "T")/100,"")) -> -0.005688744413 | K8: =IF(A8="","",RTD("cqg.rtd", ,"ContractData", C8, "T_CVol",, "T")) -> 152527 | L8: 8 | M8: =IFERROR(RANK($J8,INDIRECT(("$J$"&"1"&":$J$"&$A$103)))+COUNTIF($J$1:J8,J8)-1,"") -> 29 | N8: S.US.ARKF | O8: S.US.DASH | P8: =IF(O8="","",PROPER(RTD("cqg.rtd", ,"ContractData",O8, "LongDescription",, "T"))) -> Doordash, Inc. Cl A | Q8: =IFERROR(RTD("cqg.rtd", ,"ContractData",O8, "PerCentNetLastTrade",, "T")/100,"") -> 0.008144445402 | R8: https://finance.yahoo.com/quote/DASH | T8: 0.008144445402 | W8: =IF(Q8="","",IF(Q8<0,"",IFERROR(PROPER(RTD("cqg.rtd", ,"ContractData",O8, "LongDescription",, "T")),""))) -> Doordash, Inc. Cl A | Z8: 0.008144445402 | AB8: 34 | AC8: S.US.CRCL | AD8: =IF(RTD("cqg.rtd", ,"ContractData",AC8, "PerCentNetLastTrade",, "T")>0,"",IFERROR(RTD("cqg.rtd", ,"ContractData",AC8, "PerCentNetLastTrade",, "T")/100,"")) -> -0.01657792836 | AE8: =IF(AD8>0,"",IFERROR(PROPER(RTD("cqg.rtd", ,"ContractData",AC8, "LongDescription",, "T")),"")) -> Circle Internet Group | AF8: ="" ->  | AG8: 0.01657792836 | AH8: https://finance.yahoo.com/quote/CRCL
A9: =IF(Symbols!A9="","",Symbols!A9) -> S.US.BABA | B9: 1 | C9: S.US.BABA | D9: =IF(A9="","",RTD("cqg.rtd", ,"ContractData",C9, "LongDescription",, "T")) -> Alibaba Group Holding Ltd | H9: =IF(A9="","",RTD("cqg.rtd", ,"ContractData",C9, "LastTradeToday",, "T")) -> 152.24 | I9: =IF(A9="","",RTD("cqg.rtd", ,"ContractData",C9, "NetLastTradeToday",, "T")) -> 2.18 | J9: =IF(A9="","",IFERROR(RTD("cqg.rtd", ,"ContractData",C9, "PerCentNetLastTrade",, "T")/100,"")) -> 0.01452752232 | K9: =IF(A9="","",RTD("cqg.rtd", ,"ContractData", C9, "T_CVol",, "T")) -> 6037198 | L9: 9 | M9: =IFERROR(RANK($J9,INDIRECT(("$J$"&"1"&":$J$"&$A$103)))+COUNTIF($J$1:J9,J9)-1,"") -> 2 | N9: S.US.BABA | O9: S.US.SHOP | P9: =IF(O9="","",PROPER(RTD("cqg.rtd", ,"ContractData",O9, "LongDescription",, "T"))) -> Shopify Inc. | Q9: =IFERROR(RTD("cqg.rtd", ,"ContractData",O9, "PerCentNetLastTrade",, "T")/100,"") -> 0.008143995279 | R9: https://finance.yahoo.com/quote/SHOP | T9: 0.008143995279 | W9: =IF(Q9="","",IF(Q9<0,"",IFERROR(PROPER(RTD("cqg.rtd", ,"ContractData",O9, "LongDescription",, "T")),""))) -> Shopify Inc. | Z9: 0.008143995279 | AB9: 33 | AC9: S.US.SOFI | AD9: =IF(RTD("cqg.rtd", ,"ContractData",AC9, "PerCentNetLastTrade",, "T")>0,"",IFERROR(RTD("cqg.rtd", ,"ContractData",AC9, "PerCentNetLastTrade",, "T")/100,"")) -> -0.01491994178 | AE9: =IF(AD9>0,"",IFERROR(PROPER(RTD("cqg.rtd", ,"ContractData",AC9, "LongDescription",, "T")),"")) -> Sofi Tech Cmn | AF9: ="" ->  | AG9: 0.01491994178 | AH9: https://finance.yahoo.com/quote/SOFI
A10: =IF(Symbols!A10="","",Symbols!A10) -> S.US.BLSH | B10: 0 | C10: S.US.BLSH | D10: =IF(A10="","",RTD("cqg.rtd", ,"ContractData",C10, "LongDescription",, "T")) -> Bullish | H10: =IF(A10="","",RTD("cqg.rtd", ,"ContractData",C10, "LastTradeToday",, "T")) -> 41.14 | I10: =IF(A10="","",RTD("cqg.rtd", ,"ContractData",C10, "NetLastTradeToday",, "T")) -> -1.72 | J10: =IF(A10="","",IFERROR(RTD("cqg.rtd", ,"ContractData",C10, "PerCentNetLastTrade",, "T")/100,"")) -> -0.04013065796 | K10: =IF(A10="","",RTD("cqg.rtd", ,"ContractData", C10, "T_CVol",, "T")) -> 994981 | L10: 10 | M10: =IFERROR(RANK($J10,INDIRECT(("$J$"&"1"&":$J$"&$A$103)))+COUNTIF($J$1:J10,J10)-1,"") -> 41 | N10: S.US.BLSH | O10: S.US.Z | P10: =IF(O10="","",PROPER(RTD("cqg.rtd", ,"ContractData",O10, "LongDescription",, "T"))) -> Zillow Group Cl C | Q10: =IFERROR(RTD("cqg.rtd", ,"ContractData",O10, "PerCentNetLastTrade",, "T")/100,"") -> 0.007941091539 | R10: https://finance.yahoo.com/quote/Z | T10: 0.007941091539 | W10: =IF(Q10="","",IF(Q10<0,"",IFERROR(PROPER(RTD("cqg.rtd", ,"ContractData",O10, "LongDescription",, "T")),""))) -> Zillow Group Cl C | Z10: 0.007941091539 | AB10: 32 | AC10: S.US.COIN | AD10: =IF(RTD("cqg.rtd", ,"ContractData",AC10, "PerCentNetLastTrade",, "T")>0,"",IFERROR(RTD("cqg.rtd", ,"ContractData",AC10, "PerCentNetLastTrade",, "T")/100,"")) -> -0.01180494723 | AE10: =IF(AD10>0,"",IFERROR(PROPER(RTD("cqg.rtd", ,"ContractData",AC10, "LongDescription",, "T")),"")) -> Coinbase Glb Cl A Cm | AF10: ="" ->  | AG10: 0.01180494723 | AH10: https://finance.yahoo.com/quote/COIN
A11: =IF(Symbols!A11="","",Symbols!A11) -> S.US.BMNR | B11: 0 | C11: S.US.BMNR | D11: =IF(A11="","",RTD("cqg.rtd", ,"ContractData",C11, "LongDescription",, "T")) -> BitMine Immersion Technologies Inc. | H11: =IF(A11="","",RTD("cqg.rtd", ,"ContractData",C11, "LastTradeToday",, "T")) -> 28.31 | I11: =IF(A11="","",RTD("cqg.rtd", ,"ContractData",C11, "NetLastTradeToday",, "T")) -> -1.04 | J11: =IF(A11="","",IFERROR(RTD("cqg.rtd", ,"ContractData",C11, "PerCentNetLastTrade",, "T")/100,"")) -> -0.03543441227 | K11: =IF(A11="","",RTD("cqg.rtd", ,"ContractData", C11, "T_CVol",, "T")) -> 32663972 | L11: 11 | M11: =IFERROR(RANK($J11,INDIRECT(("$J$"&"1"&":$J$"&$A$103)))+COUNTIF($J$1:J11,J11)-1,"") -> 40 | N11: S.US.BMNR | O11: S.US.ICE | P11: =IF(O11="","",PROPER(RTD("cqg.rtd", ,"ContractData",O11, "LongDescription",, "T"))) -> Intercontinental, Inc. | Q11: =IFERROR(RTD("cqg.rtd", ,"ContractData",O11, "PerCentNetLastTrade",, "T")/100,"") -> 0.005472545041 | R11: https://finance.yahoo.com/quote/ICE | T11: 0.005472545041 | W11: =IF(Q11="","",IF(Q11<0,"",IFERROR(PROPER(RTD("cqg.rtd", ,"ContractData",O11, "LongDescription",, "T")),""))) -> Intercontinental, Inc. | Z11: 0.005472545041 | AB11: 31 | AC11: S.CA.ETHQ | AD11: =IF(RTD("cqg.rtd", ,"ContractData",AC11, "PerCentNetLastTrade",, "T")>0,"",IFERROR(RTD("cqg.rtd", ,"ContractData",AC11, "PerCentNetLastTrade",, "T")/100,"")) -> -0.01134930643 | AE11: =IF(AD11>0,"",IFERROR(PROPER(RTD("cqg.rtd", ,"ContractData",AC11, "LongDescription",, "T")),"")) -> 3Iq Ether Staking Etf | AF11: ="" ->  | AG11: 0.01134930643 | AH11: https://finance.yahoo.com/quote/ETHQ
A12: =IF(Symbols!A12="","",Symbols!A12) -> S.US.COIN | B12: 0 | C12: S.US.COIN | D12: =IF(A12="","",RTD("cqg.rtd", ,"ContractData",C12, "LongDescription",, "T")) -> COINBASE GLB CL A CM | H12: =IF(A12="","",RTD("cqg.rtd", ,"ContractData",C12, "LastTradeToday",, "T")) -> 236.9 | I12: =IF(A12="","",RTD("cqg.rtd", ,"ContractData",C12, "NetLastTradeToday",, "T")) -> -2.83 | J12: =IF(A12="","",IFERROR(RTD("cqg.rtd", ,"ContractData",C12, "PerCentNetLastTrade",, "T")/100,"")) -> -0.01180494723 | K12: =IF(A12="","",RTD("cqg.rtd", ,"ContractData", C12, "T_CVol",, "T")) -> 5925726 | L12: 12 | M12: =IFERROR(RANK($J12,INDIRECT(("$J$"&"1"&":$J$"&$A$103)))+COUNTIF($J$1:J12,J12)-1,"") -> 32 | N12: S.US.COIN | O12: S.US.RBLX | P12: =IF(O12="","",PROPER(RTD("cqg.rtd", ,"ContractData",O12, "LongDescription",, "T"))) -> Roblox Corp | Q12: =IFERROR(RTD("cqg.rtd", ,"ContractData",O12, "PerCentNetLastTrade",, "T")/100,"") -> 0.004152418173 | R12: https://finance.yahoo.com/quote/RBLX | T12: 0.004152418173 | W12: =IF(Q12="","",IF(Q12<0,"",IFERROR(PROPER(RTD("cqg.rtd", ,"ContractData",O12, "LongDescription",, "T")),""))) -> Roblox Corp | Z12: 0.004152418173 | AB12: 30 | AC12: S.US.META | AD12: =IF(RTD("cqg.rtd", ,"ContractData",AC12, "PerCentNetLastTrade",, "T")>0,"",IFERROR(RTD("cqg.rtd", ,"ContractData",AC12, "PerCentNetLastTrade",, "T")/100,"")) -> -0.006381544454 | AE12: =IF(AD12>0,"",IFERROR(PROPER(RTD("cqg.rtd", ,"ContractData",AC12, "LongDescription",, "T")),"")) -> Meta Platforms, Inc. | AF12: ="" ->  | AG12: 0.006381544454 | AH12: https://finance.yahoo.com/quote/META
A13: =IF(Symbols!A13="","",Symbols!A13) -> S.US.CRCL | B13: 0 | C13: S.US.CRCL | D13: =IF(A13="","",RTD("cqg.rtd", ,"ContractData",C13, "LongDescription",, "T")) -> Circle Internet Group | H13: =IF(A13="","",RTD("cqg.rtd", ,"ContractData",C13, "LastTradeToday",, "T")) -> 81.27 | I13: =IF(A13="","",RTD("cqg.rtd", ,"ContractData",C13, "NetLastTradeToday",, "T")) -> -1.37 | J13: =IF(A13="","",IFERROR(RTD("cqg.rtd", ,"ContractData",C13, "PerCentNetLastTrade",, "T")/100,"")) -> -0.01657792836 | K13: =IF(A13="","",RTD("cqg.rtd", ,"ContractData", C13, "T_CVol",, "T")) -> 6140584 | L13: 13 | M13: =IFERROR(RANK($J13,INDIRECT(("$J$"&"1"&":$J$"&$A$103)))+COUNTIF($J$1:J13,J13)-1,"") -> 34 | N13: S.US.CRCL | O13: S.US.MELI | P13: =IF(O13="","",PROPER(RTD("cqg.rtd", ,"ContractData",O13, "LongDescription",, "T"))) -> Mercadolibre, Inc. | Q13: =IFERROR(RTD("cqg.rtd", ,"ContractData",O13, "PerCentNetLastTrade",, "T")/100,"") -> 0.003753359257 | R13: https://finance.yahoo.com/quote/MELI | T13: 0.003753359257 | W13: =IF(Q13="","",IF(Q13<0,"",IFERROR(PROPER(RTD("cqg.rtd", ,"ContractData",O13, "LongDescription",, "T")),""))) -> Mercadolibre, Inc. | Z13: 0.003753359257 | AB13: 29 | AC13: S.US.ARKF | AD13: =IF(RTD("cqg.rtd", ,"ContractData",AC13, "PerCentNetLastTrade",, "T")>0,"",IFERROR(RTD("cqg.rtd", ,"ContractData",AC13, "PerCentNetLastTrade",, "T")/100,"")) -> -0.005688744413 | AE13: =IF(AD13>0,"",IFERROR(PROPER(RTD("cqg.rtd", ,"ContractData",AC13, "LongDescription",, "T")),"")) -> Ark Blockchain & Fintech Innovation Etf | AF13: ="" ->  | AG13: 0.005688744413 | AH13: https://finance.yahoo.com/quote/ARKF
A14: =IF(Symbols!A14="","",Symbols!A14) -> S.US.CRWD | B14: 1 | C14: S.US.CRWD | D14: =IF(A14="","",RTD("cqg.rtd", ,"ContractData",C14, "LongDescription",, "T")) -> CROWDSTRIKE HLD CM A | H14: =IF(A14="","",RTD("cqg.rtd", ,"ContractData",C14, "LastTradeToday",, "T")) -> 481.19 | I14: =IF(A14="","",RTD("cqg.rtd", ,"ContractData",C14, "NetLastTradeToday",, "T")) -> 4.08 | J14: =IF(A14="","",IFERROR(RTD("cqg.rtd", ,"ContractData",C14, "PerCentNetLastTrade",, "T")/100,"")) -> 0.008551487078 | K14: =IF(A14="","",RTD("cqg.rtd", ,"ContractData", C14, "T_CVol",, "T")) -> 1150652 | L14: 14 | M14: =IFERROR(RANK($J14,INDIRECT(("$J$"&"1"&":$J$"&$A$103)))+COUNTIF($J$1:J14,J14)-1,"") -> 7 | N14: S.US.CRWD | O14: S.US.XYZ | P14: =IF(O14="","",PROPER(RTD("cqg.rtd", ,"ContractData",O14, "LongDescription",, "T"))) -> Square, Inc | Q14: =IFERROR(RTD("cqg.rtd", ,"ContractData",O14, "PerCentNetLastTrade",, "T")/100,"") -> 0.003330809992 | R14: https://finance.yahoo.com/quote/XYZ | T14: 0.003330809992 | W14: =IF(Q14="","",IF(Q14<0,"",IFERROR(PROPER(RTD("cqg.rtd", ,"ContractData",O14, "LongDescription",, "T")),""))) -> Square, Inc | Z14: 0.003330809992 | AB14: 28 | AC14: S.US.SPOT | AD14: =IF(RTD("cqg.rtd", ,"ContractData",AC14, "PerCentNetLastTrade",, "T")>0,"",IFERROR(RTD("cqg.rtd", ,"ContractData",AC14, "PerCentNetLastTrade",, "T")/100,"")) -> -0.003784714527 | AE14: =IF(AD14>0,"",IFERROR(PROPER(RTD("cqg.rtd", ,"ContractData",AC14, "LongDescription",, "T")),"")) -> Spotify Technology S.A. | AF14: ="" ->  | AG14: 0.003784714527 | AH14: https://finance.yahoo.com/quote/SPOT
A15: =IF(Symbols!A15="","",Symbols!A15) -> S.US.DASH | B15: 1 | C15: S.US.DASH | D15: =IF(A15="","",RTD("cqg.rtd", ,"ContractData",C15, "LongDescription",, "T")) -> DOORDASH, INC. CL A | H15: =IF(A15="","",RTD("cqg.rtd", ,"ContractData",C15, "LastTradeToday",, "T")) -> 233.95 | I15: =IF(A15="","",RTD("cqg.rtd", ,"ContractData",C15, "NetLastTradeToday",, "T")) -> 1.89 | J15: =IF(A15="","",IFERROR(RTD("cqg.rtd", ,"ContractData",C15, "PerCentNetLastTrade",, "T")/100,"")) -> 0.008144445402 | K15: =IF(A15="","",RTD("cqg.rtd", ,"ContractData", C15, "T_CVol",, "T")) -> 1706729 | L15: 15 | M15: =IFERROR(RANK($J15,INDIRECT(("$J$"&"1"&":$J$"&$A$103)))+COUNTIF($J$1:J15,J15)-1,"") -> 8 | N15: S.US.DASH | O15: S.US.FUTU | P15: =IF(O15="","",PROPER(RTD("cqg.rtd", ,"ContractData",O15, "LongDescription",, "T"))) -> Futu Holdings Ads | Q15: =IFERROR(RTD("cqg.rtd", ,"ContractData",O15, "PerCentNetLastTrade",, "T")/100,"") -> 0.003157830813 | R15: https://finance.yahoo.com/quote/FUTU | T15: 0.003157830813 | W15: =IF(Q15="","",IF(Q15<0,"",IFERROR(PROPER(RTD("cqg.rtd", ,"ContractData",O15, "LongDescription",, "T")),""))) -> Futu Holdings Ads | Z15: 0.003157830813 | AB15: 27 | AC15: S.US.GLBE | AD15: =IF(RTD("cqg.rtd", ,"ContractData",AC15, "PerCentNetLastTrade",, "T")>0,"",IFERROR(RTD("cqg.rtd", ,"ContractData",AC15, "PerCentNetLastTrade",, "T")/100,"")) -> -0.003272086584 | AE15: =IF(AD15>0,"",IFERROR(PROPER(RTD("cqg.rtd", ,"ContractData",AC15, "LongDescription",, "T")),"")) -> Global-E Online Cm | AF15: ="" ->  | AG15: 0.003272086584 | AH15: https://finance.yahoo.com/quote/GLBE
A16: =IF(Symbols!A16="","",Symbols!A16) -> S.US.DKNG | B16: 1 | C16: S.US.DKNG | D16: =IF(A16="","",RTD("cqg.rtd", ,"ContractData",C16, "LongDescription",, "T")) -> DRAFTKINGS INC. CL A | H16: =IF(A16="","",RTD("cqg.rtd", ,"ContractData",C16, "LastTradeToday",, "T")) -> 34.88 | I16: =IF(A16="","",RTD("cqg.rtd", ,"ContractData",C16, "NetLastTradeToday",, "T")) -> 0.42 | J16: =IF(A16="","",IFERROR(RTD("cqg.rtd", ,"ContractData",C16, "PerCentNetLastTrade",, "T")/100,"")) -> 0.01218804411 | K16: =IF(A16="","",RTD("cqg.rtd", ,"ContractData", C16, "T_CVol",, "T")) -> 5487617 | L16: 16 | M16: =IFERROR(RANK($J16,INDIRECT(("$J$"&"1"&":$J$"&$A$103)))+COUNTIF($J$1:J16,J16)-1,"") -> 5 | N16: S.US.DKNG | O16: S.US.KSPI
A17: =IF(Symbols!A17="","",Symbols!A17) -> S.US.DSY | B17: 0 | C17: S.US.DSY | D17: =IF(A17="","",RTD("cqg.rtd", ,"ContractData",C17, "LongDescription",, "T")) -> BIG TR CLD HD LD ORD | H17: =IF(A17="","",RTD("cqg.rtd", ,"ContractData",C17, "LastTradeToday",, "T")) -> 0.3 | I17: =IF(A17="","",RTD("cqg.rtd", ,"ContractData",C17, "NetLastTradeToday",, "T")) -> -0.01 | J17: =IF(A17="","",IFERROR(RTD("cqg.rtd", ,"ContractData",C17, "PerCentNetLastTrade",, "T")/100,"")) -> -0.03225806452 | K17: =IF(A17="","",RTD("cqg.rtd", ,"ContractData", C17, "T_CVol",, "T")) -> 68073 | L17: 17 | M17: =IFERROR(RANK($J17,INDIRECT(("$J$"&"1"&":$J$"&$A$103)))+COUNTIF($J$1:J17,J17)-1,"") -> 39 | N17: S.US.DSY | O17: S.US.INTU
A18: =IF(Symbols!A18="","",Symbols!A18) -> S.US.ETOR | B18: 0 | C18: S.US.ETOR | D18: =IF(A18="","",RTD("cqg.rtd", ,"ContractData",C18, "LongDescription",, "T")) -> eToro Group Ltd. | H18: =IF(A18="","",RTD("cqg.rtd", ,"ContractData",C18, "LastTradeToday",, "T")) -> 35.86 | I18: =IF(A18="","",RTD("cqg.rtd", ,"ContractData",C18, "NetLastTradeToday",, "T")) -> -0.09 | J18: =IF(A18="","",IFERROR(RTD("cqg.rtd", ,"ContractData",C18, "PerCentNetLastTrade",, "T")/100,"")) -> -0.002503477051 | K18: =IF(A18="","",RTD("cqg.rtd", ,"ContractData", C18, "T_CVol",, "T")) -> 610796 | L18: 18 | M18: =IFERROR(RANK($J18,INDIRECT(("$J$"&"1"&":$J$"&$A$103)))+COUNTIF($J$1:J18,J18)-1,"") -> 26 | N18: S.US.ETOR | O18: S.US.NU
A19: =IF(Symbols!A19="","",Symbols!A19) -> S.US.FUTU | B19: 1 | C19: S.US.FUTU | D19: =IF(A19="","",RTD("cqg.rtd", ,"ContractData",C19, "LongDescription",, "T")) -> FUTU HOLDINGS ADS | H19: =IF(A19="","",RTD("cqg.rtd", ,"ContractData",C19, "LastTradeToday",, "T")) -> 165.19 | I19: =IF(A19="","",RTD("cqg.rtd", ,"ContractData",C19, "NetLastTradeToday",, "T")) -> 0.52 | J19: =IF(A19="","",IFERROR(RTD("cqg.rtd", ,"ContractData",C19, "PerCentNetLastTrade",, "T")/100,"")) -> 0.003157830813 | K19: =IF(A19="","",RTD("cqg.rtd", ,"ContractData", C19, "T_CVol",, "T")) -> 402378 | L19: 19 | M19: =IFERROR(RANK($J19,INDIRECT(("$J$"&"1"&":$J$"&$A$103)))+COUNTIF($J$1:J19,J19)-1,"") -> 15 | N19: S.US.FUTU | O19: S.US.AMZN
A20: =IF(Symbols!A20="","",Symbols!A20) -> S.US.GLBE | B20: 0 | C20: S.US.GLBE | D20: =IF(A20="","",RTD("cqg.rtd", ,"ContractData",C20, "LongDescription",, "T")) -> GLOBAL-E ONLINE CM | H20: =IF(A20="","",RTD("cqg.rtd", ,"ContractData",C20, "LastTradeToday",, "T")) -> 39.6 | I20: =IF(A20="","",RTD("cqg.rtd", ,"ContractData",C20, "NetLastTradeToday",, "T")) -> -0.13 | J20: =IF(A20="","",IFERROR(RTD("cqg.rtd", ,"ContractData",C20, "PerCentNetLastTrade",, "T")/100,"")) -> -0.003272086584 | K20: =IF(A20="","",RTD("cqg.rtd", ,"ContractData", C20, "T_CVol",, "T")) -> 372292 | L20: 20 | M20: =IFERROR(RANK($J20,INDIRECT(("$J$"&"1"&":$J$"&$A$103)))+COUNTIF($J$1:J20,J20)-1,"") -> 27 | N20: S.US.GLBE | O20: S.US.PINS
A21: =IF(Symbols!A21="","",Symbols!A21) -> S.US.HOOD | B21: 0 | C21: S.US.HOOD | D21: =IF(A21="","",RTD("cqg.rtd", ,"ContractData",C21, "LongDescription",, "T")) -> ROBINHOOD MK CL A CS | H21: =IF(A21="","",RTD("cqg.rtd", ,"ContractData",C21, "LastTradeToday",, "T")) -> 118.13 | I21: =IF(A21="","",RTD("cqg.rtd", ,"ContractData",C21, "NetLastTradeToday",, "T")) -> -2.31 | J21: =IF(A21="","",IFERROR(RTD("cqg.rtd", ,"ContractData",C21, "PerCentNetLastTrade",, "T")/100,"")) -> -0.01917967453 | K21: =IF(A21="","",RTD("cqg.rtd", ,"ContractData", C21, "T_CVol",, "T")) -> 12959108 | L21: 21 | M21: =IFERROR(RANK($J21,INDIRECT(("$J$"&"1"&":$J$"&$A$103)))+COUNTIF($J$1:J21,J21)-1,"") -> 36 | N21: S.US.HOOD | O21: S.US.ABNB
A22: =IF(Symbols!A22="","",Symbols!A22) -> S.US.ICE | B22: 1 | C22: S.US.ICE | D22: =IF(A22="","",RTD("cqg.rtd", ,"ContractData",C22, "LongDescription",, "T")) -> Intercontinental, Inc. | H22: =IF(A22="","",RTD("cqg.rtd", ,"ContractData",C22, "LastTradeToday",, "T")) -> 163.52 | I22: =IF(A22="","",RTD("cqg.rtd", ,"ContractData",C22, "NetLastTradeToday",, "T")) -> 0.89 | J22: =IF(A22="","",IFERROR(RTD("cqg.rtd", ,"ContractData",C22, "PerCentNetLastTrade",, "T")/100,"")) -> 0.005472545041 | K22: =IF(A22="","",RTD("cqg.rtd", ,"ContractData", C22, "T_CVol",, "T")) -> 1045099 | L22: 22 | M22: =IFERROR(RANK($J22,INDIRECT(("$J$"&"1"&":$J$"&$A$103)))+COUNTIF($J$1:J22,J22)-1,"") -> 11 | N22: S.US.ICE | O22: S.JP.J4689
A23: =IF(Symbols!A23="","",Symbols!A23) -> S.US.INTU | B23: 1 | C23: S.US.INTU | D23: =IF(A23="","",RTD("cqg.rtd", ,"ContractData",C23, "LongDescription",, "T")) -> INTUIT INC | H23: =IF(A23="","",RTD("cqg.rtd", ,"ContractData",C23, "LastTradeToday",, "T")) -> 676.55 | I23: =IF(A23="","",RTD("cqg.rtd", ,"ContractData",C23, "NetLastTradeToday",, "T")) -> 1.72 | J23: =IF(A23="","",IFERROR(RTD("cqg.rtd", ,"ContractData",C23, "PerCentNetLastTrade",, "T")/100,"")) -> 0.002548790066 | K23: =IF(A23="","",RTD("cqg.rtd", ,"ContractData", C23, "T_CVol",, "T")) -> 555034 | L23: 23 | M23: =IFERROR(RANK($J23,INDIRECT(("$J$"&"1"&":$J$"&$A$103)))+COUNTIF($J$1:J23,J23)-1,"") -> 17 | N23: S.US.INTU | O23: S.US.AMD
A24: =IF(Symbols!A24="","",Symbols!A24) -> S.US.KLAR | B24: 0 | C24: S.US.KLAR | D24: =IF(A24="","",RTD("cqg.rtd", ,"ContractData",C24, "LongDescription",, "T")) -> Klarna Group plc | H24: =IF(A24="","",RTD("cqg.rtd", ,"ContractData",C24, "LastTradeToday",, "T")) -> 29.59 | I24: =IF(A24="","",RTD("cqg.rtd", ,"ContractData",C24, "NetLastTradeToday",, "T")) -> -0.83 | J24: =IF(A24="","",IFERROR(RTD("cqg.rtd", ,"ContractData",C24, "PerCentNetLastTrade",, "T")/100,"")) -> -0.02728468113 | K24: =IF(A24="","",RTD("cqg.rtd", ,"ContractData", C24, "T_CVol",, "T")) -> 1981959 | L24: 24 | M24: =IFERROR(RANK($J24,INDIRECT(("$J$"&"1"&":$J$"&$A$103)))+COUNTIF($J$1:J24,J24)-1,"") -> 37 | N24: S.US.KLAR | O24: S.US.PYPL
A25: =IF(Symbols!A25="","",Symbols!A25) -> S.US.KSPI | B25: 1 | C25: S.US.KSPI | D25: =IF(A25="","",RTD("cqg.rtd", ,"ContractData",C25, "LongDescription",, "T")) -> JOINT STOCK CO ADS | H25: =IF(A25="","",RTD("cqg.rtd", ,"ContractData",C25, "LastTradeToday",, "T")) -> 78.65 | I25: =IF(A25="","",RTD("cqg.rtd", ,"ContractData",C25, "NetLastTradeToday",, "T")) -> 0.24 | J25: =IF(A25="","",IFERROR(RTD("cqg.rtd", ,"ContractData",C25, "PerCentNetLastTrade",, "T")/100,"")) -> 0.003060834077 | K25: =IF(A25="","",RTD("cqg.rtd", ,"ContractData", C25, "T_CVol",, "T")) -> 221366 | L25: 25 | M25: =IFERROR(RANK($J25,INDIRECT(("$J$"&"1"&":$J$"&$A$103)))+COUNTIF($J$1:J25,J25)-1,"") -> 16 | N25: S.US.KSPI | O25: S.US.TOST
A26: =IF(Symbols!A26="","",Symbols!A26) -> S.US.MELI | B26: 1 | C26: S.US.MELI | D26: =IF(A26="","",RTD("cqg.rtd", ,"ContractData",C26, "LongDescription",, "T")) -> MERCADOLIBRE, INC. | H26: =IF(A26="","",RTD("cqg.rtd", ,"ContractData",C26, "LastTradeToday",, "T")) -> 2005.71 | I26: =IF(A26="","",RTD("cqg.rtd", ,"ContractData",C26, "NetLastTradeToday",, "T")) -> 7.5 | J26: =IF(A26="","",IFERROR(RTD("cqg.rtd", ,"ContractData",C26, "PerCentNetLastTrade",, "T")/100,"")) -> 0.003753359257 | K26: =IF(A26="","",RTD("cqg.rtd", ,"ContractData", C26, "T_CVol",, "T")) -> 192536 | L26: 26 | M26: =IFERROR(RANK($J26,INDIRECT(("$J$"&"1"&":$J$"&$A$103)))+COUNTIF($J$1:J26,J26)-1,"") -> 13 | N26: S.US.MELI | O26: S.US.ETOR
A27: =IF(Symbols!A27="","",Symbols!A27) -> S.US.META | B27: 0 | C27: S.US.META | D27: =IF(A27="","",RTD("cqg.rtd", ,"ContractData",C27, "LongDescription",, "T")) -> Meta Platforms, Inc. | H27: =IF(A27="","",RTD("cqg.rtd", ,"ContractData",C27, "LastTradeToday",, "T")) -> 663.29 | I27: =IF(A27="","",RTD("cqg.rtd", ,"ContractData",C27, "NetLastTradeToday",, "T")) -> -4.26 | J27: =IF(A27="","",IFERROR(RTD("cqg.rtd", ,"ContractData",C27, "PerCentNetLastTrade",, "T")/100,"")) -> -0.006381544454 | K27: =IF(A27="","",RTD("cqg.rtd", ,"ContractData", C27, "T_CVol",, "T")) -> 7133813 | L27: 27 | M27: =IFERROR(RANK($J27,INDIRECT(("$J$"&"1"&":$J$"&$A$103)))+COUNTIF($J$1:J27,J27)-1,"") -> 30 | N27: S.US.META | O27: S.US.GLBE
A28: =IF(Symbols!A28="","",Symbols!A28) -> S.US.NU | B28: 1 | C28: S.US.NU | D28: =IF(A28="","",RTD("cqg.rtd", ,"ContractData",C28, "LongDescription",, "T")) -> Nu Holdings Ltd. | H28: =IF(A28="","",RTD("cqg.rtd", ,"ContractData",C28, "LastTradeToday",, "T")) -> 16.76 | I28: =IF(A28="","",RTD("cqg.rtd", ,"ContractData",C28, "NetLastTradeToday",, "T")) -> 0.02 | J28: =IF(A28="","",IFERROR(RTD("cqg.rtd", ,"ContractData",C28, "PerCentNetLastTrade",, "T")/100,"")) -> 0.00119474313 | K28: =IF(A28="","",RTD("cqg.rtd", ,"ContractData", C28, "T_CVol",, "T")) -> 11809694 | L28: 28 | M28: =IFERROR(RANK($J28,INDIRECT(("$J$"&"1"&":$J$"&$A$103)))+COUNTIF($J$1:J28,J28)-1,"") -> 18 | N28: S.US.NU | O28: S.US.SPOT
A29: =IF(Symbols!A29="","",Symbols!A29) -> S.US.NVDA | B29: 1 | C29: S.US.NVDA | D29: =IF(A29="","",RTD("cqg.rtd", ,"ContractData",C29, "LongDescription",, "T")) -> NVIDIA CORPORATION | H29: =IF(A29="","",RTD("cqg.rtd", ,"ContractData",C29, "LastTradeToday",, "T")) -> 190.53 | I29: =IF(A29="","",RTD("cqg.rtd", ,"ContractData",C29, "NetLastTradeToday",, "T")) -> 1.92 | J29: =IF(A29="","",IFERROR(RTD("cqg.rtd", ,"ContractData",C29, "PerCentNetLastTrade",, "T")/100,"")) -> 0.01017973596 | K29: =IF(A29="","",RTD("cqg.rtd", ,"ContractData", C29, "T_CVol",, "T")) -> 139740292 | L29: 29 | M29: =IFERROR(RANK($J29,INDIRECT(("$J$"&"1"&":$J$"&$A$103)))+COUNTIF($J$1:J29,J29)-1,"") -> 6 | N29: S.US.NVDA | O29: S.US.ARKF
A30: =IF(Symbols!A30="","",Symbols!A30) -> S.US.PINS | B30: 1 | C30: S.US.PINS | D30: =IF(A30="","",RTD("cqg.rtd", ,"ContractData",C30, "LongDescription",, "T")) -> Pinterest, Inc. | H30: =IF(A30="","",RTD("cqg.rtd", ,"ContractData",C30, "LastTradeToday",, "T")) -> 26.14 | I30: =IF(A30="","",RTD("cqg.rtd", ,"ContractData",C30, "NetLastTradeToday",, "T")) -> 0.01 | J30: =IF(A30="","",IFERROR(RTD("cqg.rtd", ,"ContractData",C30, "PerCentNetLastTrade",, "T")/100,"")) -> 0.0003827018752 | K30: =IF(A30="","",RTD("cqg.rtd", ,"ContractData", C30, "T_CVol",, "T")) -> 5425554 | L30: 30 | M30: =IFERROR(RANK($J30,INDIRECT(("$J$"&"1"&":$J$"&$A$103)))+COUNTIF($J$1:J30,J30)-1,"") -> 20 | N30: S.US.PINS | O30: S.US.META
A31: =IF(Symbols!A31="","",Symbols!A31) -> S.US.PLTR | B31: 0 | C31: S.US.PLTR | D31: =IF(A31="","",RTD("cqg.rtd", ,"ContractData",C31, "LongDescription",, "T")) -> PALANTIR TECH CL A | H31: =IF(A31="","",RTD("cqg.rtd", ,"ContractData",C31, "LastTradeToday",, "T")) -> 188.71 | I31: =IF(A31="","",RTD("cqg.rtd", ,"ContractData",C31, "NetLastTradeToday",, "T")) -> -5.46 | J31: =IF(A31="","",IFERROR(RTD("cqg.rtd", ,"ContractData",C31, "PerCentNetLastTrade",, "T")/100,"")) -> -0.02811968893 | K31: =IF(A31="","",RTD("cqg.rtd", ,"ContractData", C31, "T_CVol",, "T")) -> 26261988 | L31: 31 | M31: =IFERROR(RANK($J31,INDIRECT(("$J$"&"1"&":$J$"&$A$103)))+COUNTIF($J$1:J31,J31)-1,"") -> 38 | N31: S.US.PLTR | O31: S.CA.ETHQ
A32: =IF(Symbols!A32="","",Symbols!A32) -> S.US.PYPL | B32: 0 | C32: S.US.PYPL | D32: =IF(A32="","",RTD("cqg.rtd", ,"ContractData",C32, "LongDescription",, "T")) -> PAYPAL HOLDINGS | H32: =IF(A32="","",RTD("cqg.rtd", ,"ContractData",C32, "LastTradeToday",, "T")) -> 59.97 | I32: =IF(A32="","",RTD("cqg.rtd", ,"ContractData",C32, "NetLastTradeToday",, "T")) -> -0.07 | J32: =IF(A32="","",IFERROR(RTD("cqg.rtd", ,"ContractData",C32, "PerCentNetLastTrade",, "T")/100,"")) -> -0.001165889407 | K32: =IF(A32="","",RTD("cqg.rtd", ,"ContractData", C32, "T_CVol",, "T")) -> 7537808 | L32: 32 | M32: =IFERROR(RANK($J32,INDIRECT(("$J$"&"1"&":$J$"&$A$103)))+COUNTIF($J$1:J32,J32)-1,"") -> 24 | N32: S.US.PYPL | O32: S.US.COIN
A33: =IF(Symbols!A33="","",Symbols!A33) -> S.US.RBLX | B33: 1 | C33: S.US.RBLX | D33: =IF(A33="","",RTD("cqg.rtd", ,"ContractData",C33, "LongDescription",, "T")) -> Roblox Corp | H33: =IF(A33="","",RTD("cqg.rtd", ,"ContractData",C33, "LastTradeToday",, "T")) -> 82.22 | I33: =IF(A33="","",RTD("cqg.rtd", ,"ContractData",C33, "NetLastTradeToday",, "T")) -> 0.34 | J33: =IF(A33="","",IFERROR(RTD("cqg.rtd", ,"ContractData",C33, "PerCentNetLastTrade",, "T")/100,"")) -> 0.004152418173 | K33: =IF(A33="","",RTD("cqg.rtd", ,"ContractData", C33, "T_CVol",, "T")) -> 3863678 | L33: 33 | M33: =IFERROR(RANK($J33,INDIRECT(("$J$"&"1"&":$J$"&$A$103)))+COUNTIF($J$1:J33,J33)-1,"") -> 12 | N33: S.US.RBLX | O33: S.US.SOFI
A34: =IF(Symbols!A34="","",Symbols!A34) -> S.US.ROKU | B34: 1 | C34: S.US.ROKU | D34: =IF(A34="","",RTD("cqg.rtd", ,"ContractData",C34, "LongDescription",, "T")) -> ROKU, INC. A CMN | H34: =IF(A34="","",RTD("cqg.rtd", ,"ContractData",C34, "LastTradeToday",, "T")) -> 112.08 | I34: =IF(A34="","",RTD("cqg.rtd", ,"ContractData",C34, "NetLastTradeToday",, "T")) -> 1.4 | J34: =IF(A34="","",IFERROR(RTD("cqg.rtd", ,"ContractData",C34, "PerCentNetLastTrade",, "T")/100,"")) -> 0.01264907842 | K34: =IF(A34="","",RTD("cqg.rtd", ,"ContractData", C34, "T_CVol",, "T")) -> 1576937 | L34: 34 | M34: =IFERROR(RANK($J34,INDIRECT(("$J$"&"1"&":$J$"&$A$103)))+COUNTIF($J$1:J34,J34)-1,"") -> 4 | N34: S.US.ROKU | O34: S.US.CRCL
A35: =IF(Symbols!A35="","",Symbols!A35) -> S.US.SE | B35: 1 | C35: S.US.SE | D35: =IF(A35="","",RTD("cqg.rtd", ,"ContractData",C35, "LongDescription",, "T")) -> Sea Limited | H35: =IF(A35="","",RTD("cqg.rtd", ,"ContractData",C35, "LastTradeToday",, "T")) -> 127.85 | I35: =IF(A35="","",RTD("cqg.rtd", ,"ContractData",C35, "NetLastTradeToday",, "T")) -> 1.6 | J35: =IF(A35="","",IFERROR(RTD("cqg.rtd", ,"ContractData",C35, "PerCentNetLastTrade",, "T")/100,"")) -> 0.01267326733 | K35: =IF(A35="","",RTD("cqg.rtd", ,"ContractData", C35, "T_CVol",, "T")) -> 1840549 | L35: 35 | M35: =IFERROR(RANK($J35,INDIRECT(("$J$"&"1"&":$J$"&$A$103)))+COUNTIF($J$1:J35,J35)-1,"") -> 3 | N35: S.US.SE | O35: S.CA.SOLQ
A36: =IF(Symbols!A36="","",Symbols!A36) -> S.US.SHOP | B36: 1 | C36: S.US.SHOP | D36: =IF(A36="","",RTD("cqg.rtd", ,"ContractData",C36, "LongDescription",, "T")) -> Shopify Inc. | H36: =IF(A36="","",RTD("cqg.rtd", ,"ContractData",C36, "LastTradeToday",, "T")) -> 170.83 | I36: =IF(A36="","",RTD("cqg.rtd", ,"ContractData",C36, "NetLastTradeToday",, "T")) -> 1.38 | J36: =IF(A36="","",IFERROR(RTD("cqg.rtd", ,"ContractData",C36, "PerCentNetLastTrade",, "T")/100,"")) -> 0.008143995279 | K36: =IF(A36="","",RTD("cqg.rtd", ,"ContractData", C36, "T_CVol",, "T")) -> 2574362 | L36: 36 | M36: =IFERROR(RANK($J36,INDIRECT(("$J$"&"1"&":$J$"&$A$103)))+COUNTIF($J$1:J36,J36)-1,"") -> 9 | N36: S.US.SHOP | O36: S.US.HOOD
A37: =IF(Symbols!A37="","",Symbols!A37) -> S.US.SLMT | B37: 1 | C37: S.US.SLMT | D37: =IF(A37="","",RTD("cqg.rtd", ,"ContractData",C37, "LongDescription",, "T")) -> BRERA HOLDINGS B OS | H37: =IF(A37="","",RTD("cqg.rtd", ,"ContractData",C37, "LastTradeToday",, "T")) -> 2.1 | I37: =IF(A37="","",RTD("cqg.rtd", ,"ContractData",C37, "NetLastTradeToday",, "T")) -> 0.04 | J37: =IF(A37="","",IFERROR(RTD("cqg.rtd", ,"ContractData",C37, "PerCentNetLastTrade",, "T")/100,"")) -> 0.01941747573 | K37: =IF(A37="","",RTD("cqg.rtd", ,"ContractData", C37, "T_CVol",, "T")) -> 881435 | L37: 37 | M37: =IFERROR(RANK($J37,INDIRECT(("$J$"&"1"&":$J$"&$A$103)))+COUNTIF($J$1:J37,J37)-1,"") -> 1 | N37: S.US.SLMT | O37: S.US.KLAR
A38: =IF(Symbols!A38="","",Symbols!A38) -> S.US.SOFI | B38: 0 | C38: S.US.SOFI | D38: =IF(A38="","",RTD("cqg.rtd", ,"ContractData",C38, "LongDescription",, "T")) -> SOFI TECH CMN | H38: =IF(A38="","",RTD("cqg.rtd", ,"ContractData",C38, "LastTradeToday",, "T")) -> 27.07 | I38: =IF(A38="","",RTD("cqg.rtd", ,"ContractData",C38, "NetLastTradeToday",, "T")) -> -0.41 | J38: =IF(A38="","",IFERROR(RTD("cqg.rtd", ,"ContractData",C38, "PerCentNetLastTrade",, "T")/100,"")) -> -0.01491994178 | K38: =IF(A38="","",RTD("cqg.rtd", ,"ContractData", C38, "T_CVol",, "T")) -> 24735553 | L38: 38 | M38: =IFERROR(RANK($J38,INDIRECT(("$J$"&"1"&":$J$"&$A$103)))+COUNTIF($J$1:J38,J38)-1,"") -> 33 | N38: S.US.SOFI | O38: S.US.PLTR
A39: =IF(Symbols!A39="","",Symbols!A39) -> S.US.SPOT | B39: 0 | C39: S.US.SPOT | D39: =IF(A39="","",RTD("cqg.rtd", ,"ContractData",C39, "LongDescription",, "T")) -> Spotify Technology S.A. | H39: =IF(A39="","",RTD("cqg.rtd", ,"ContractData",C39, "LastTradeToday",, "T")) -> 584.35 | I39: =IF(A39="","",RTD("cqg.rtd", ,"ContractData",C39, "NetLastTradeToday",, "T")) -> -2.22 | J39: =IF(A39="","",IFERROR(RTD("cqg.rtd", ,"ContractData",C39, "PerCentNetLastTrade",, "T")/100,"")) -> -0.003784714527 | K39: =IF(A39="","",RTD("cqg.rtd", ,"ContractData", C39, "T_CVol",, "T")) -> 565251 | L39: 39 | M39: =IFERROR(RANK($J39,INDIRECT(("$J$"&"1"&":$J$"&$A$103)))+COUNTIF($J$1:J39,J39)-1,"") -> 28 | N39: S.US.SPOT | O39: S.US.DSY
A40: =IF(Symbols!A40="","",Symbols!A40) -> S.US.TOST | B40: 0 | C40: S.US.TOST | D40: =IF(A40="","",RTD("cqg.rtd", ,"ContractData",C40, "LongDescription",, "T")) -> Toast, Inc. | H40: =IF(A40="","",RTD("cqg.rtd", ,"ContractData",C40, "LastTradeToday",, "T")) -> 36.44 | I40: =IF(A40="","",RTD("cqg.rtd", ,"ContractData",C40, "NetLastTradeToday",, "T")) -> -0.05 | J40: =IF(A40="","",IFERROR(RTD("cqg.rtd", ,"ContractData",C40, "PerCentNetLastTrade",, "T")/100,"")) -> -0.001370238421 | K40: =IF(A40="","",RTD("cqg.rtd", ,"ContractData", C40, "T_CVol",, "T")) -> 2950428 | L40: 40 | M40: =IFERROR(RANK($J40,INDIRECT(("$J$"&"1"&":$J$"&$A$103)))+COUNTIF($J$1:J40,J40)-1,"") -> 25 | N40: S.US.TOST | O40: S.US.BMNR
A41: =IF(Symbols!A41="","",Symbols!A41) -> S.US.XYZ | B41: 1 | C41: S.US.XYZ | D41: =IF(A41="","",RTD("cqg.rtd", ,"ContractData",C41, "LongDescription",, "T")) -> Square, Inc | H41: =IF(A41="","",RTD("cqg.rtd", ,"ContractData",C41, "LastTradeToday",, "T")) -> 66.27 | I41: =IF(A41="","",RTD("cqg.rtd", ,"ContractData",C41, "NetLastTradeToday",, "T")) -> 0.22 | J41: =IF(A41="","",IFERROR(RTD("cqg.rtd", ,"ContractData",C41, "PerCentNetLastTrade",, "T")/100,"")) -> 0.003330809992 | K41: =IF(A41="","",RTD("cqg.rtd", ,"ContractData", C41, "T_CVol",, "T")) -> 3118434 | L41: 41 | M41: =IFERROR(RANK($J41,INDIRECT(("$J$"&"1"&":$J$"&$A$103)))+COUNTIF($J$1:J41,J41)-1,"") -> 14 | N41: S.US.XYZ | O41: S.US.BLSH
A42: =IF(Symbols!A42="","",Symbols!A42) -> S.US.Z | B42: 1 | C42: S.US.Z | D42: =IF(A42="","",RTD("cqg.rtd", ,"ContractData",C42, "LongDescription",, "T")) -> ZILLOW GROUP CL C | H42: =IF(A42="","",RTD("cqg.rtd", ,"ContractData",C42, "LastTradeToday",, "T")) -> 69.81 | I42: =IF(A42="","",RTD("cqg.rtd", ,"ContractData",C42, "NetLastTradeToday",, "T")) -> 0.55 | J42: =IF(A42="","",IFERROR(RTD("cqg.rtd", ,"ContractData",C42, "PerCentNetLastTrade",, "T")/100,"")) -> 0.007941091539 | K42: =IF(A42="","",RTD("cqg.rtd", ,"ContractData", C42, "T_CVol",, "T")) -> 1158996 | L42: 42 | M42: =IFERROR(RANK($J42,INDIRECT(("$J$"&"1"&":$J$"&$A$103)))+COUNTIF($J$1:J42,J42)-1,"") -> 10 | N42: S.US.Z
A43: =IF(Symbols!A43="","",Symbols!A43) ->  | D43: =IF(A43="","",RTD("cqg.rtd", ,"ContractData",C43, "LongDescription",, "T")) ->  | H43: =IF(A43="","",RTD("cqg.rtd", ,"ContractData",C43, "LastTradeToday",, "T")) ->  | I43: =IF(A43="","",RTD("cqg.rtd", ,"ContractData",C43, "NetLastTradeToday",, "T")) ->  | J43: =IF(A43="","",IFERROR(RTD("cqg.rtd", ,"ContractData",C43, "PerCentNetLastTrade",, "T")/100,"")) ->  | K43: =IF(A43="","",RTD("cqg.rtd", ,"ContractData", C43, "T_CVol",, "T")) ->  | L43: 43 | M43: =IFERROR(RANK($J43,INDIRECT(("$J$"&"1"&":$J$"&$A$103)))+COUNTIF($J$1:J43,J43)-1,"") -> 
A44: =IF(Symbols!A44="","",Symbols!A44) ->  | D44: =IF(A44="","",RTD("cqg.rtd", ,"ContractData",C44, "LongDescription",, "T")) ->  | H44: =IF(A44="","",RTD("cqg.rtd", ,"ContractData",C44, "LastTradeToday",, "T")) ->  | I44: =IF(A44="","",RTD("cqg.rtd", ,"ContractData",C44, "NetLastTradeToday",, "T")) ->  | J44: =IF(A44="","",IFERROR(RTD("cqg.rtd", ,"ContractData",C44, "PerCentNetLastTrade",, "T")/100,"")) ->  | K44: =IF(A44="","",RTD("cqg.rtd", ,"ContractData", C44, "T_CVol",, "T")) ->  | L44: 44 | M44: =IFERROR(RANK($J44,INDIRECT(("$J$"&"1"&":$J$"&$A$103)))+COUNTIF($J$1:J44,J44)-1,"") -> 
A45: =IF(Symbols!A45="","",Symbols!A45) ->  | D45: =IF(A45="","",RTD("cqg.rtd", ,"ContractData",C45, "LongDescription",, "T")) ->  | H45: =IF(A45="","",RTD("cqg.rtd", ,"ContractData",C45, "LastTradeToday",, "T")) ->  | I45: =IF(A45="","",RTD("cqg.rtd", ,"ContractData",C45, "NetLastTradeToday",, "T")) ->  | J45: =IF(A45="","",IFERROR(RTD("cqg.rtd", ,"ContractData",C45, "PerCentNetLastTrade",, "T")/100,"")) ->  | K45: =IF(A45="","",RTD("cqg.rtd", ,"ContractData", C45, "T_CVol",, "T")) ->  | L45: 45 | M45: =IFERROR(RANK($J45,INDIRECT(("$J$"&"1"&":$J$"&$A$103)))+COUNTIF($J$1:J45,J45)-1,"") -> 
A46: =IF(Symbols!A46="","",Symbols!A46) ->  | D46: =IF(A46="","",RTD("cqg.rtd", ,"ContractData",C46, "LongDescription",, "T")) ->  | H46: =IF(A46="","",RTD("cqg.rtd", ,"ContractData",C46, "LastTradeToday",, "T")) ->  | I46: =IF(A46="","",RTD("cqg.rtd", ,"ContractData",C46, "NetLastTradeToday",, "T")) ->  | J46: =IF(A46="","",IFERROR(RTD("cqg.rtd", ,"ContractData",C46, "PerCentNetLastTrade",, "T")/100,"")) ->  | K46: =IF(A46="","",RTD("cqg.rtd", ,"ContractData", C46, "T_CVol",, "T")) ->  | L46: 46 | M46: =IFERROR(RANK($J46,INDIRECT(("$J$"&"1"&":$J$"&$A$103)))+COUNTIF($J$1:J46,J46)-1,"") -> 
A47: =IF(Symbols!A47="","",Symbols!A47) ->  | D47: =IF(A47="","",RTD("cqg.rtd", ,"ContractData",C47, "LongDescription",, "T")) ->  | H47: =IF(A47="","",RTD("cqg.rtd", ,"ContractData",C47, "LastTradeToday",, "T")) ->  | I47: =IF(A47="","",RTD("cqg.rtd", ,"ContractData",C47, "NetLastTradeToday",, "T")) ->  | J47: =IF(A47="","",IFERROR(RTD("cqg.rtd", ,"ContractData",C47, "PerCentNetLastTrade",, "T")/100,"")) ->  | K47: =IF(A47="","",RTD("cqg.rtd", ,"ContractData", C47, "T_CVol",, "T")) ->  | L47: 47 | M47: =IFERROR(RANK($J47,INDIRECT(("$J$"&"1"&":$J$"&$A$103)))+COUNTIF($J$1:J47,J47)-1,"") -> 
A48: =IF(Symbols!A48="","",Symbols!A48) ->  | D48: =IF(A48="","",RTD("cqg.rtd", ,"ContractData",C48, "LongDescription",, "T")) ->  | H48: =IF(A48="","",RTD("cqg.rtd", ,"ContractData",C48, "LastTradeToday",, "T")) ->  | I48: =IF(A48="","",RTD("cqg.rtd", ,"ContractData",C48, "NetLastTradeToday",, "T")) ->  | J48: =IF(A48="","",IFERROR(RTD("cqg.rtd", ,"ContractData",C48, "PerCentNetLastTrade",, "T")/100,"")) ->  | K48: =IF(A48="","",RTD("cqg.rtd", ,"ContractData", C48, "T_CVol",, "T")) ->  | L48: 48 | M48: =IFERROR(RANK($J48,INDIRECT(("$J$"&"1"&":$J$"&$A$103)))+COUNTIF($J$1:J48,J48)-1,"") -> 
A49: =IF(Symbols!A49="","",Symbols!A49) ->  | D49: =IF(A49="","",RTD("cqg.rtd", ,"ContractData",C49, "LongDescription",, "T")) ->  | H49: =IF(A49="","",RTD("cqg.rtd", ,"ContractData",C49, "LastTradeToday",, "T")) ->  | I49: =IF(A49="","",RTD("cqg.rtd", ,"ContractData",C49, "NetLastTradeToday",, "T")) ->  | J49: =IF(A49="","",IFERROR(RTD("cqg.rtd", ,"ContractData",C49, "PerCentNetLastTrade",, "T")/100,"")) ->  | K49: =IF(A49="","",RTD("cqg.rtd", ,"ContractData", C49, "T_CVol",, "T")) ->  | L49: 49 | M49: =IFERROR(RANK($J49,INDIRECT(("$J$"&"1"&":$J$"&$A$103)))+COUNTIF($J$1:J49,J49)-1,"") -> 
A50: =IF(Symbols!A50="","",Symbols!A50) ->  | D50: =IF(A50="","",RTD("cqg.rtd", ,"ContractData",C50, "LongDescription",, "T")) ->  | H50: =IF(A50="","",RTD("cqg.rtd", ,"ContractData",C50, "LastTradeToday",, "T")) ->  | I50: =IF(A50="","",RTD("cqg.rtd", ,"ContractData",C50, "NetLastTradeToday",, "T")) ->  | J50: =IF(A50="","",IFERROR(RTD("cqg.rtd", ,"ContractData",C50, "PerCentNetLastTrade",, "T")/100,"")) ->  | K50: =IF(A50="","",RTD("cqg.rtd", ,"ContractData", C50, "T_CVol",, "T")) ->  | L50: 50 | M50: =IFERROR(RANK($J50,INDIRECT(("$J$"&"1"&":$J$"&$A$103)))+COUNTIF($J$1:J50,J50)-1,"") -> 
A51: =IF(Symbols!A51="","",Symbols!A51) ->  | D51: =IF(A51="","",RTD("cqg.rtd", ,"ContractData",C51, "LongDescription",, "T")) ->  | H51: =IF(A51="","",RTD("cqg.rtd", ,"ContractData",C51, "LastTradeToday",, "T")) ->  | I51: =IF(A51="","",RTD("cqg.rtd", ,"ContractData",C51, "NetLastTradeToday",, "T")) ->  | J51: =IF(A51="","",IFERROR(RTD("cqg.rtd", ,"ContractData",C51, "PerCentNetLastTrade",, "T")/100,"")) ->  | K51: =IF(A51="","",RTD("cqg.rtd", ,"ContractData", C51, "T_CVol",, "T")) ->  | L51: 51 | M51: =IFERROR(RANK($J51,INDIRECT(("$J$"&"1"&":$J$"&$A$103)))+COUNTIF($J$1:J51,J51)-1,"") -> 
A52: =IF(Symbols!A52="","",Symbols!A52) ->  | D52: =IF(A52="","",RTD("cqg.rtd", ,"ContractData",C52, "LongDescription",, "T")) ->  | H52: =IF(A52="","",RTD("cqg.rtd", ,"ContractData",C52, "LastTradeToday",, "T")) ->  | I52: =IF(A52="","",RTD("cqg.rtd", ,"ContractData",C52, "NetLastTradeToday",, "T")) ->  | J52: =IF(A52="","",IFERROR(RTD("cqg.rtd", ,"ContractData",C52, "PerCentNetLastTrade",, "T")/100,"")) ->  | K52: =IF(A52="","",RTD("cqg.rtd", ,"ContractData", C52, "T_CVol",, "T")) ->  | L52: 52 | M52: =IFERROR(RANK($J52,INDIRECT(("$J$"&"1"&":$J$"&$A$103)))+COUNTIF($J$1:J52,J52)-1,"") -> 
A53: =IF(Symbols!A53="","",Symbols!A53) ->  | D53: =IF(A53="","",RTD("cqg.rtd", ,"ContractData",C53, "LongDescription",, "T")) ->  | H53: =IF(A53="","",RTD("cqg.rtd", ,"ContractData",C53, "LastTradeToday",, "T")) ->  | I53: =IF(A53="","",RTD("cqg.rtd", ,"ContractData",C53, "NetLastTradeToday",, "T")) ->  | J53: =IF(A53="","",IFERROR(RTD("cqg.rtd", ,"ContractData",C53, "PerCentNetLastTrade",, "T")/100,"")) ->  | K53: =IF(A53="","",RTD("cqg.rtd", ,"ContractData", C53, "T_CVol",, "T")) ->  | L53: 53 | M53: =IFERROR(RANK($J53,INDIRECT(("$J$"&"1"&":$J$"&$A$103)))+COUNTIF($J$1:J53,J53)-1,"") -> 
A54: =IF(Symbols!A54="","",Symbols!A54) ->  | D54: =IF(A54="","",RTD("cqg.rtd", ,"ContractData",C54, "LongDescription",, "T")) ->  | H54: =IF(A54="","",RTD("cqg.rtd", ,"ContractData",C54, "LastTradeToday",, "T")) ->  | I54: =IF(A54="","",RTD("cqg.rtd", ,"ContractData",C54, "NetLastTradeToday",, "T")) ->  | J54: =IF(A54="","",IFERROR(RTD("cqg.rtd", ,"ContractData",C54, "PerCentNetLastTrade",, "T")/100,"")) ->  | K54: =IF(A54="","",RTD("cqg.rtd", ,"ContractData", C54, "T_CVol",, "T")) ->  | L54: 54 | M54: =IFERROR(RANK($J54,INDIRECT(("$J$"&"1"&":$J$"&$A$103)))+COUNTIF($J$1:J54,J54)-1,"") -> 
A55: =IF(Symbols!A55="","",Symbols!A55) ->  | D55: =IF(A55="","",RTD("cqg.rtd", ,"ContractData",C55, "LongDescription",, "T")) ->  | H55: =IF(A55="","",RTD("cqg.rtd", ,"ContractData",C55, "LastTradeToday",, "T")) ->  | I55: =IF(A55="","",RTD("cqg.rtd", ,"ContractData",C55, "NetLastTradeToday",, "T")) ->  | J55: =IF(A55="","",IFERROR(RTD("cqg.rtd", ,"ContractData",C55, "PerCentNetLastTrade",, "T")/100,"")) ->  | K55: =IF(A55="","",RTD("cqg.rtd", ,"ContractData", C55, "T_CVol",, "T")) ->  | L55: 55 | M55: =IFERROR(RANK($J55,INDIRECT(("$J$"&"1"&":$J$"&$A$103)))+COUNTIF($J$1:J55,J55)-1,"") -> 
A56: =IF(Symbols!A56="","",Symbols!A56) ->  | D56: =IF(A56="","",RTD("cqg.rtd", ,"ContractData",C56, "LongDescription",, "T")) ->  | H56: =IF(A56="","",RTD("cqg.rtd", ,"ContractData",C56, "LastTradeToday",, "T")) ->  | I56: =IF(A56="","",RTD("cqg.rtd", ,"ContractData",C56, "NetLastTradeToday",, "T")) ->  | J56: =IF(A56="","",IFERROR(RTD("cqg.rtd", ,"ContractData",C56, "PerCentNetLastTrade",, "T")/100,"")) ->  | K56: =IF(A56="","",RTD("cqg.rtd", ,"ContractData", C56, "T_CVol",, "T")) ->  | L56: 56 | M56: =IFERROR(RANK($J56,INDIRECT(("$J$"&"1"&":$J$"&$A$103)))+COUNTIF($J$1:J56,J56)-1,"") -> 
A57: =IF(Symbols!A57="","",Symbols!A57) ->  | D57: =IF(A57="","",RTD("cqg.rtd", ,"ContractData",C57, "LongDescription",, "T")) ->  | H57: =IF(A57="","",RTD("cqg.rtd", ,"ContractData",C57, "LastTradeToday",, "T")) ->  | I57: =IF(A57="","",RTD("cqg.rtd", ,"ContractData",C57, "NetLastTradeToday",, "T")) ->  | J57: =IF(A57="","",IFERROR(RTD("cqg.rtd", ,"ContractData",C57, "PerCentNetLastTrade",, "T")/100,"")) ->  | K57: =IF(A57="","",RTD("cqg.rtd", ,"ContractData", C57, "T_CVol",, "T")) ->  | L57: 57 | M57: =IFERROR(RANK($J57,INDIRECT(("$J$"&"1"&":$J$"&$A$103)))+COUNTIF($J$1:J57,J57)-1,"") -> 
A58: =IF(Symbols!A58="","",Symbols!A58) ->  | D58: =IF(A58="","",RTD("cqg.rtd", ,"ContractData",C58, "LongDescription",, "T")) ->  | H58: =IF(A58="","",RTD("cqg.rtd", ,"ContractData",C58, "LastTradeToday",, "T")) ->  | I58: =IF(A58="","",RTD("cqg.rtd", ,"ContractData",C58, "NetLastTradeToday",, "T")) ->  | J58: =IF(A58="","",IFERROR(RTD("cqg.rtd", ,"ContractData",C58, "PerCentNetLastTrade",, "T")/100,"")) ->  | K58: =IF(A58="","",RTD("cqg.rtd", ,"ContractData", C58, "T_CVol",, "T")) ->  | L58: 58 | M58: =IFERROR(RANK($J58,INDIRECT(("$J$"&"1"&":$J$"&$A$103)))+COUNTIF($J$1:J58,J58)-1,"") -> 
A59: =IF(Symbols!A59="","",Symbols!A59) ->  | D59: =IF(A59="","",RTD("cqg.rtd", ,"ContractData",C59, "LongDescription",, "T")) ->  | H59: =IF(A59="","",RTD("cqg.rtd", ,"ContractData",C59, "LastTradeToday",, "T")) ->  | I59: =IF(A59="","",RTD("cqg.rtd", ,"ContractData",C59, "NetLastTradeToday",, "T")) ->  | J59: =IF(A59="","",IFERROR(RTD("cqg.rtd", ,"ContractData",C59, "PerCentNetLastTrade",, "T")/100,"")) ->  | K59: =IF(A59="","",RTD("cqg.rtd", ,"ContractData", C59, "T_CVol",, "T")) ->  | L59: 59 | M59: =IFERROR(RANK($J59,INDIRECT(("$J$"&"1"&":$J$"&$A$103)))+COUNTIF($J$1:J59,J59)-1,"") -> 
A60: =IF(Symbols!A60="","",Symbols!A60) ->  | D60: =IF(A60="","",RTD("cqg.rtd", ,"ContractData",C60, "LongDescription",, "T")) ->  | H60: =IF(A60="","",RTD("cqg.rtd", ,"ContractData",C60, "LastTradeToday",, "T")) ->  | I60: =IF(A60="","",RTD("cqg.rtd", ,"ContractData",C60, "NetLastTradeToday",, "T")) ->  | J60: =IF(A60="","",IFERROR(RTD("cqg.rtd", ,"ContractData",C60, "PerCentNetLastTrade",, "T")/100,"")) ->  | K60: =IF(A60="","",RTD("cqg.rtd", ,"ContractData", C60, "T_CVol",, "T")) ->  | L60: 60 | M60: =IFERROR(RANK($J60,INDIRECT(("$J$"&"1"&":$J$"&$A$103)))+COUNTIF($J$1:J60,J60)-1,"") -> 
A103: =60-COUNTIF(A1:A60,"") -> 42 | B103: =SUM(B1:B101)/A103 -> 0.5238095238
A104: ="$J$1:$J$"&A103 -> $J$1:$J$42

Sheet Symbols
A1: S.CA.ETHQ | B1: =IF(A1="","",RTD("cqg.rtd", ,"ContractData",A1, "LongDescription",, "T")) -> 3iQ Ether Staking ETF | G1: https://www.ark-funds.com/funds/arkf#hold | M1: Last Symbol update was 12/24/2025
A2: S.CA.SOLQ | B2: =IF(A2="","",RTD("cqg.rtd", ,"ContractData",A2, "LongDescription",, "T")) -> 3IQ SOLANA STAKING ETF
A3: S.JP.J4689 | B3: =IF(A3="","",RTD("cqg.rtd", ,"ContractData",A3, "LongDescription",, "T")) -> Yahoo Japan Corp
A4: S.NL.ADYEN | B4: =IF(A4="","",RTD("cqg.rtd", ,"ContractData",A4, "LongDescription",, "T")) -> Adyen N.V.
A5: S.US.ABNB | B5: =IF(A5="","",RTD("cqg.rtd", ,"ContractData",A5, "LongDescription",, "T")) -> Airbnb, Inc. Class A
A6: S.US.AMD | B6: =IF(A6="","",RTD("cqg.rtd", ,"ContractData",A6, "LongDescription",, "T")) -> ADV MICRO DEVICES
A7: S.US.AMZN | B7: =IF(A7="","",RTD("cqg.rtd", ,"ContractData",A7, "LongDescription",, "T")) -> Amazon.com Inc
A8: S.US.ARKF | B8: =IF(A8="","",RTD("cqg.rtd", ,"ContractData",A8, "LongDescription",, "T")) -> ARK Blockchain & Fintech Innovation ETF
A9: S.US.BABA | B9: =IF(A9="","",RTD("cqg.rtd", ,"ContractData",A9, "LongDescription",, "T")) -> Alibaba Group Holding Ltd
A10: S.US.BLSH | B10: =IF(A10="","",RTD("cqg.rtd", ,"ContractData",A10, "LongDescription",, "T")) -> Bullish
A11: S.US.BMNR | B11: =IF(A11="","",RTD("cqg.rtd", ,"ContractData",A11, "LongDescription",, "T")) -> BitMine Immersion Technologies Inc.
A12: S.US.COIN | B12: =IF(A12="","",RTD("cqg.rtd", ,"ContractData",A12, "LongDescription",, "T")) -> COINBASE GLB CL A CM
A13: S.US.CRCL | B13: =IF(A13="","",RTD("cqg.rtd", ,"ContractData",A13, "LongDescription",, "T")) -> Circle Internet Group
A14: S.US.CRWD | B14: =IF(A14="","",RTD("cqg.rtd", ,"ContractData",A14, "LongDescription",, "T")) -> CROWDSTRIKE HLD CM A
A15: S.US.DASH | B15: =IF(A15="","",RTD("cqg.rtd", ,"ContractData",A15, "LongDescription",, "T")) -> DOORDASH, INC. CL A
A16: S.US.DKNG | B16: =IF(A16="","",RTD("cqg.rtd", ,"ContractData",A16, "LongDescription",, "T")) -> DRAFTKINGS INC. CL A
A17: S.US.DSY | B17: =IF(A17="","",RTD("cqg.rtd", ,"ContractData",A17, "LongDescription",, "T")) -> BIG TR CLD HD LD ORD
A18: S.US.ETOR | B18: =IF(A18="","",RTD("cqg.rtd", ,"ContractData",A18, "LongDescription",, "T")) -> eToro Group Ltd. | C18: To update the Ticker List:
A19: S.US.FUTU | B19: =IF(A19="","",RTD("cqg.rtd", ,"ContractData",A19, "LongDescription",, "T")) -> FUTU HOLDINGS ADS
A20: S.US.GLBE | B20: =IF(A20="","",RTD("cqg.rtd", ,"ContractData",A20, "LongDescription",, "T")) -> GLOBAL-E ONLINE CM
A21: S.US.HOOD | B21: =IF(A21="","",RTD("cqg.rtd", ,"ContractData",A21, "LongDescription",, "T")) -> ROBINHOOD MK CL A CS | C21: 1) From their Web site download
A22: S.US.ICE | B22: =IF(A22="","",RTD("cqg.rtd", ,"ContractData",A22, "LongDescription",, "T")) -> Intercontinental, Inc. | C22: the CSV File.
A23: S.US.INTU | B23: =IF(A23="","",RTD("cqg.rtd", ,"ContractData",A23, "LongDescription",, "T")) -> INTUIT INC
A24: S.US.KLAR | B24: =IF(A24="","",RTD("cqg.rtd", ,"ContractData",A24, "LongDescription",, "T")) -> Klarna Group plc
A25: S.US.KSPI | B25: =IF(A25="","",RTD("cqg.rtd", ,"ContractData",A25, "LongDescription",, "T")) -> JOINT STOCK CO ADS | C25: 2) Copy the Tickers from the file.
A26: S.US.MELI | B26: =IF(A26="","",RTD("cqg.rtd", ,"ContractData",A26, "LongDescription",, "T")) -> MERCADOLIBRE, INC. | C26: Merge "S.US." to the Tickers. ="S.US."&H26 | H26: NVDA
A27: S.US.META | B27: =IF(A27="","",RTD("cqg.rtd", ,"ContractData",A27, "LongDescription",, "T")) -> Meta Platforms, Inc. | G27: ="S.US."&H26 -> S.US.NVDA
A28: S.US.NU | B28: =IF(A28="","",RTD("cqg.rtd", ,"ContractData",A28, "LongDescription",, "T")) -> Nu Holdings Ltd.
A29: S.US.NVDA | B29: =IF(A29="","",RTD("cqg.rtd", ,"ContractData",A29, "LongDescription",, "T")) -> NVIDIA CORPORATION | C29: 3) Remove money market fund tickers.
A30: S.US.PINS | B30: =IF(A30="","",RTD("cqg.rtd", ,"ContractData",A30, "LongDescription",, "T")) -> Pinterest, Inc.
A31: S.US.PLTR | B31: =IF(A31="","",RTD("cqg.rtd", ,"ContractData",A31, "LongDescription",, "T")) -> PALANTIR TECH CL A
A32: S.US.PYPL | B32: =IF(A32="","",RTD("cqg.rtd", ,"ContractData",A32, "LongDescription",, "T")) -> PAYPAL HOLDINGS | C32: 4) Copy and Paste "As Values" the updated Ticker List to column A.
A33: S.US.RBLX | B33: =IF(A33="","",RTD("cqg.rtd", ,"ContractData",A33, "LongDescription",, "T")) -> Roblox Corp
A34: S.US.ROKU | B34: =IF(A34="","",RTD("cqg.rtd", ,"ContractData",A34, "LongDescription",, "T")) -> ROKU, INC. A CMN
A35: S.US.SE | B35: =IF(A35="","",RTD("cqg.rtd", ,"ContractData",A35, "LongDescription",, "T")) -> Sea Limited | C35: This fund is actively managed and holdings change.
A36: S.US.SHOP | B36: =IF(A36="","",RTD("cqg.rtd", ,"ContractData",A36, "LongDescription",, "T")) -> Shopify Inc.
A37: S.US.SLMT | B37: =IF(A37="","",RTD("cqg.rtd", ,"ContractData",A37, "LongDescription",, "T")) -> BRERA HOLDINGS B OS
A38: S.US.SOFI | B38: =IF(A38="","",RTD("cqg.rtd", ,"ContractData",A38, "LongDescription",, "T")) -> SOFI TECH CMN
A39: S.US.SPOT | B39: =IF(A39="","",RTD("cqg.rtd", ,"ContractData",A39, "LongDescription",, "T")) -> Spotify Technology S.A.
A40: S.US.TOST | B40: =IF(A40="","",RTD("cqg.rtd", ,"ContractData",A40, "LongDescription",, "T")) -> Toast, Inc.
A41: S.US.XYZ | B41: =IF(A41="","",RTD("cqg.rtd", ,"ContractData",A41, "LongDescription",, "T")) -> Square, Inc
A42: S.US.Z | B42: =IF(A42="","",RTD("cqg.rtd", ,"ContractData",A42, "LongDescription",, "T")) -> ZILLOW GROUP CL C
B43: =IF(A43="","",RTD("cqg.rtd", ,"ContractData",A43, "LongDescription",, "T")) -> 
B44: =IF(A44="","",RTD("cqg.rtd", ,"ContractData",A44, "LongDescription",, "T")) -> 
B45: =IF(A45="","",RTD("cqg.rtd", ,"ContractData",A45, "LongDescription",, "T")) -> 
B46: =IF(A46="","",RTD("cqg.rtd", ,"ContractData",A46, "LongDescription",, "T")) -> 
B47: =IF(A47="","",RTD("cqg.rtd", ,"ContractData",A47, "LongDescription",, "T")) -> 
B48: =IF(A48="","",RTD("cqg.rtd", ,"ContractData",A48, "LongDescription",, "T")) -> 
B49: =IF(A49="","",RTD("cqg.rtd", ,"ContractData",A49, "LongDescription",, "T")) -> 
B50: =IF(A50="","",RTD("cqg.rtd", ,"ContractData",A50, "LongDescription",, "T")) -> 
B51: =IF(A51="","",RTD("cqg.rtd", ,"ContractData",A51, "LongDescription",, "T")) -> 
B52: =IF(A52="","",RTD("cqg.rtd", ,"ContractData",A52, "LongDescription",, "T")) -> 
B53: =IF(A53="","",RTD("cqg.rtd", ,"ContractData",A53, "LongDescription",, "T")) -> 
B54: =IF(A54="","",RTD("cqg.rtd", ,"ContractData",A54, "LongDescription",, "T")) -> 
B55: =IF(A55="","",RTD("cqg.rtd", ,"ContractData",A55, "LongDescription",, "T")) -> 
B56: =IF(A56="","",RTD("cqg.rtd", ,"ContractData",A56, "LongDescription",, "T")) -> 
B57: =IF(A57="","",RTD("cqg.rtd", ,"ContractData",A57, "LongDescription",, "T")) -> 
B58: =IF(A58="","",RTD("cqg.rtd", ,"ContractData",A58, "LongDescription",, "T")) -> 
B59: =IF(A59="","",RTD("cqg.rtd", ,"ContractData",A59, "LongDescription",, "T")) -> 
B60: =IF(A60="","",RTD("cqg.rtd", ,"ContractData",A60, "LongDescription",, "T")) -> 
